{"text_format":"3","workbook":"xlsx","n_sheets":12,"sheets":["DANE","TER","DROGA","Roboty inżynieryjne","KD","W","Teletechnika","En","Os","Zasilanie","PKP PLK","Melioracja"],"not_rendered":{"macros":1,"defined_names":22,"comments":9},"read":"whole","date_system":"1900"}

{"sheet":"DANE","index":0,"n_rows":36,"n_cols":3,"rows_kept":36}
["INFO"]
["Numer",134]
["Temat","Aktualizacja i optymalizacja dokumentacji projektowej zadania wraz z pełnieniem nadzoru autorskiego podczas realizacji Inwestycji tj.: ”Rozbudowa drogi wojewódzkiej nr 548 Stolno-Wąbrzeźno od km 0+005 do km 29+619 z wyłączeniem węzła autostradowego w m. Lisewo od km 14+144 do km 15+146” \nOdcinek nr 1 – od km 0+005 do km 14+144"]
[]
["CPV"]
["45000000-9","Roboty budowlane w zakresie wznoszenia kompletnych obiektów budowlanych lub ich części oraz roboty w zakresie inżynierii lądowej i wodnej "]
["45111000-8","Roboty w zakresie burzenia, roboty ziemne"]
["45220000-5","Przepusty pod koroną drogi"]
["45221110-6","Roboty budowlane w zakresie mostów"]
["45221120-9","Roboty budowlane w zakresie wiaduktów"]
["45230000-8","Roboty budowlane w zakresie budowy rurociągów, linii komunikacyjnych i elektroenergetycznych, autostrad, dróg, lotnisk i kolei; wyrównywanie terenu"]
["45231220-3","Roboty budowlane w zakresie gazociągów"]
["45231300-8","Roboty budowlane w zakresie budowy wodociągów i rurociągów do odprowadzania ścieków"]
["45231400-9","Roboty budowlane w zakresie budowy linii energetycznych"]
["45232310-8","Roboty budowlane w zakresie linii telefonicznych"]
["45262522-6","Ekarany akustyczne"]
["45332000-3","Roboty instalacyjne wodne i kanalizacyjne"]
["45223500-1","Konstrukcje z betonu zbrojonego"]
["45213320-2","Roboty budowlane w zakresie budowy obieków budowlanych związanych z transportem kolejowym"]
[]
["Branza",null,"KOLORY"]
["D","BRANŻA DROGOWA"]
["M","BRANŻA MOSTOWA"]
["K-Ekr","BRANŻA KONSTRUKCYJNA - EKRANY AKUSTYCZNE"]
["K-Rozb","BRANŻA KONSTRUKCYJNA - ROZBIÓRKI"]
["S-Kd","BRANŻA SANITARNA - KANALIZACJA DESZCZOWA"]
["S-Ks","BRANŻA SANITARNA - KANALIZACJA SANITARNA"]
["S-G","BRANŻA SANITARNA - SIEĆ GAZOWA"]
["S-W","BRANŻA SANITARNA - SIEĆ WODOCIĄGOWA"]
["E-Osw","BRANŻA ELEKTROENERGETYCZNA - OŚWIETLENIE"]
["E-nN","BRANŻA ELEKTROENERGETYCZNA - SIEĆ NISKIEGO NAPIĘCIA"]
["E-SN","BRANŻA ELEKTROENERGETYCZNA - SIEĆ ŚREDNIEGO NAPIĘCIA"]
["E-WN","BRANŻA ELEKTROENERGETYCZNA - SIEĆ WYSOKIEGO NAPIĘCIA"]
["T","BRANŻA TELEKOMUNIKACYJNA"]
["H","BRANŻA MELIORACYJNA"]
["Z","BRANŻA DENDROLOGICZNA"]

{"sheet":"TER","index":1,"n_rows":24,"n_cols":5,"rows_kept":24,"merged":[[0,0,0,2],[1,1,1,2],[2,1,2,2]]}
["KOSZTORYS OFERTOWY 22.07"]
["Inwestycja",{"$f":"DANE!B3","v":"Aktualizacja i optymalizacja dokumentacji projektowej zadania wraz z pełnieniem nadzoru autorskiego podczas realizacji Inwestycji tj.: ”Rozbudowa drogi wojewódzkiej nr 548 Stolno-Wąbrzeźno od km 0+005 do km 29+619 z wyłączeniem węzła autostradowego w m. Lisewo od km 14+144 do km 15+146” \nOdcinek nr 1 – od km 0+005 do km 14+144"}]
["kod CPV:","45230000-8 Roboty budowlane w zakresie budowy rurociągów, linii komunikacyjnych i elektroenergetycznych, autostrad, dróg, lotnisk i kolei; wyrównywanie terenu"]
["Lp.","TABELA ELEMENTÓW ROZLICZENIOWYCH"]
[1,"BRANŻA DROGOWA",null,null,"DROGA"]
[2,"BRANŻA MOSTOWA",null,null,"Roboty inżynieryjne"]
[4,"BRANŻA SANITARNA"]
[null,{"$f":"UPPER(INDIRECT(CONCATENATE(\"'\",E8,\"'!C3\"),TRUE))","v":"KANALIZACJA DESZCZOWA"},null,null,"kd"]
[null,"WODOCIĄG",null,null,"w"]
[5,"BRANŻA ELEKTROENERGETYCZNA"]
[null,"PRZEBUDOWA SIECI ELEKTROENERGETYCZNYCH",null,null,"En"]
[null,"BUDOWA OŚWIETLENIA DROGOWEGO",null,null,"Os"]
[null,{"$f":"UPPER(INDIRECT(CONCATENATE(\"'\",E13,\"'!C3\"),TRUE))","v":"ZASILANIE OBIEKTÓW"},null,null,"Zasilanie"]
[null,{"$f":"UPPER(INDIRECT(CONCATENATE(\"'\",E14,\"'!C3\"),TRUE))","v":"SIECI WŁ.PKP PLK"},null,null,"PKP PLK"]
[6,"BRANŻA TELEKOMUNIKACYJNA",null,null,"TELETECHNIKA"]
[7,"BRANŻA MELIORACYJNA",null,null,"MELIORACJA"]
[]
[null,"SUMA NETTO"]
[null,"VAT 23%"]
[null,"SUMA BRUTTO"]
[]
[]
["____________","______________"]
["miejscowość, data","podpis Wykonawcy"]

{"sheet":"DROGA","index":2,"n_rows":217,"n_cols":7,"rows_kept":217,"merged":[[0,0,0,6],[1,0,1,1],[1,2,1,6],[2,0,2,1],[2,2,2,6],[3,0,3,1],[3,2,3,6],[211,0,211,2],[211,3,211,6]]}
[{"$f":"DANE!B3","v":"Aktualizacja i optymalizacja dokumentacji projektowej zadania wraz z pełnieniem nadzoru autorskiego podczas realizacji Inwestycji tj.: ”Rozbudowa drogi wojewódzkiej nr 548 Stolno-Wąbrzeźno od km 0+005 do km 29+619 z wyłączeniem węzła autostradowego w m. Lisewo od km 14+144 do km 15+146” \nOdcinek nr 1 – od km 0+005 do km 14+144"}]
["Branża: ",null,"BRANŻA DROGOWA 22.07"]
["Obiekt:",null,"Roboty drogowe"]
["Kod CPV:",null,"45000000-9\nRoboty budowlane w zakresie wznoszenia kompletnych obiektów budowlanych lub ich części oraz roboty w zakresie inżynierii lądowej i wodnej "]
["Poz.","Podstawa wyceny","Wyszczególnienie elementu rozliczeniowego","Jedn.","Ilość jedn.","Cena jedn.","Wartość robót"]
[null,"D.01.00.00","ROBOTY PRZYGOTOWAWCZE","x","x","x"]
[null,"D.01.01.01","Wytyczenie trasy i punktów wysokościowych (zgodnie z planem sytuacyjnym)","x","x","x","x"]
[1,null,"- DW548, drogi publiczne","km",14.63]
[null,"D.01.02.01","Usunięcie drzew i krzewów","x","x","x"]
[{"$f":"A8+1","v":2},null,"- usunięcie drzew:","x","x","x","x"]
[{"$f":"A10+1","v":3},null,"- drzewa o średnicy do 15 cm","szt.",{"v":3,"d":"3.00"}]
[4,null,"- drzewa o średnicy 16 ÷ 25 cm ","szt.",{"v":11,"d":"11.00"}]
[5,null,"- drzewa o średnicy 26 ÷ 35 cm ","szt.",{"v":1,"d":"1.00"}]
[6,null,"- usunięcie karpiny","szt.",{"v":206,"d":"206.00"}]
[7,null,"- wywóz karpiny","szt.",{"v":230,"d":"230.00"}]
[8,null,"- usunięcie zakrzaczeń ","m2",{"v":7625,"d":"7625.00"}]
[null,"D.01.02.02","Zdjęcie humusu","x","x","x","x"]
[{"$f":"A16+1","v":9},null,"- usuniecie warstwy ziemi urodzajnej/humusu","m2",{"v":106080,"d":"106080.00"}]
[null,"D.01.02.04","Rozebranie elementów dróg, ogrodzeń, obiektów kubaturowych","x","x","x"]
[{"$f":"A18+1","v":10},null,"- rozebranie podbudowy z kruszywa łamanego gr. do 55cm","m2",{"v":72908,"d":"72908.00"}]
[11,null,"- rozebranie warstwy MCE gr.17cm do ponownego wbudowania","m2",{"v":13067,"d":"13067.00"}]
[12,null,"- rozebranie warstwy kruszywa gr. 17cm do ponownego wbudowania","m2",{"v":14875,"d":"14875.00"}]
[13,null,"- rozebranie warstwy kruszywa gr. 20cm do ponownego wbudowania","m2",{"v":3322,"d":"3322.00"}]
[14,null,"- rozebranie warstwy ulepszonego podłoża z gruntu stab.ziarnistym dodatkiem hydrofobowym gr.30cm do ponownego wbudowania","m2",{"v":29019,"d":"29019.00"}]
[{"$f":"A24+1","v":15},null,"- rozebranie nawierzchni z kostki betonowej wraz z podbudową z kruszywa łamanego","m2",{"v":2881.5,"d":"2881.50"}]
[16,null,"- rozebranie nawierzchni z płyt betonowych chodnikowych","m2",{"v":458.3,"d":"458.30"}]
[17,null,"- rozebranie krawężników betonowych wraz z ławą betonową","mb",{"v":1461.5,"d":"1461.50"}]
[18,null,"- rozebranie obrzeży chodnikowych wraz z ławą betonową","mb",{"v":1305,"d":"1305.00"}]
[19,null,"- rozebranie nawierzchni z płyt drogowych, żelbetowych","m2",{"v":183,"d":"183.00"}]
[20,null,"- rozebranie chodników z betonu asfaltowego gr. 4 cm","m2",{"v":199.5,"d":"199.50"}]
[21,null,"- rozebranie nawierzchni z trylinki","m2",{"v":482.5,"d":"482.50"}]
[22,null,"- rozebranie nawierzchni z płyt kamiennych","m2",{"v":15,"d":"15.00"}]
[23,null,"- rozebranie wiat przystankowych, murowanych","kpl",{"v":3,"d":"3.00"}]
[24,null,"- rozebranie wiaty przystankowej stalowej","kpl",{"v":1,"d":"1.00"}]
[25,null,"- rozebranie dobudówki","kpl",{"v":1,"d":"1.00"}]
[26,null,"- demontaż tarcz znakow drogowych","szt",{"v":206,"d":"206.00"}]
[27,null,"- demontaż konstrukcji pod tablice drogowe","szt",{"v":24,"d":"24.00"}]
[28,null,"- demontaż słupków znakow drogowych","szt",{"v":125,"d":"125.00"}]
[29,null,"- demontaż słupków hektometrowych","szt",{"v":105,"d":"105.00"}]
[30,null,"- rozebranie ogrodzeń","mb",{"v":200,"d":"200.00"}]
[31,null,"- rozebranie wykonanych krawężników betonowych wraz z ławą betonową do ponownego wbudowania do 50%","mb",{"v":2211,"d":"2211.00"}]
[32,null,"- rozebranie wykonanych obrzeży betonowych wraz z ławą betonową do ponownego wbudowania do 50%","mb",{"v":4993,"d":"4993.00"}]
[33,null,"- rozebranie wykonanej nawierzchni z kostki betonowej wraz z podbudową do ponownego wbudowania do 50%","m2",{"v":770,"d":"770.00"}]
[34,null,"- rozebranie wykonanej nawierzchni z betonu asfaltowego wraz z podbudową ","m2",{"v":1980,"d":"1980.00"}]
[35,null,"- rozebranie wykonanych ścieków betonowych wraz z ławą betonową do ponownego wbudowania do 50%","mb",{"v":106,"d":"106.00"}]
[36,null,"- rozebranie wykonanych rowów krytych do ponownego wbudowania do 50%","mb",{"v":267,"d":"267.00"}]
[37,null,"- rozebranie zjazdów z nawierzchni kruszywa","m2",{"v":167,"d":"167.00"}]
[38,null,"- przestawienie kamery","kpl",{"v":1,"d":"1.00"}]
[39,null,"- przestawienie kapliczki w m.Lisewo","kpl",{"v":1,"d":"1.00"}]
[null,"D.02.00.00","ROBOTY ZIEMNE","x","x","x"]
[null,"D.02.01.01","Wykonanie wykopów w gruntach kat. I-V. Wykonanie nasypów","x","x","x","x"]
[{"$f":"A49+1","v":40},null,"- wykopy","m3",{"v":178714,"d":"178714.00"}]
[41,null,"- nasypy","m3",{"v":21265,"d":"21265.00"}]
[null,"D.02.03.02","WZMOCNIENIE  GEOSYNTETYKIEM PODŁOŻA I KONSTRUKCJI NASYPU","x","x","x","x"]
[{"$f":"A53+1","v":42},null,"- wykonanie wzmocnienia podłoża i konstrukcji nasypów geosyntetykiem","m2",{"v":8249,"d":"8249.00"}]
[null,"D.03.00.00","ODWODNIENIE KORYTA DROGOWEGO","x","x","x"]
[null,"D.03.05.01","Drenaż koryta drogowego","x","x","x","x"]
[{"$f":"A55+1","v":43},null,"- wykonanie drenażu rurami PCV d=150mm osłoniętych geowłókniną ciągłą z PP w obsypce z kruszywa 16/31,5mm wraz z armaturą","mb",{"v":3790,"d":"3790.00"}]
[null,"D.04.00.00","PODBUDOWY","x","x","x"]
[null,"D.04.02.01","Warstwy zabezpieczające. Warstwa odsączająca / mrozoochronna","x","x","x","x"]
[{"$f":"A58+1","v":44},null,"- wykonanie warstwy odsączającej z mieszanki niezwiązanej gr. 25cm, 0/31,5 (CBR≥40, SE≥35) - zatoki autobusowe, pierścienie ronda, powierzchnie przejezdne i miejsca postojowe","m2",{"v":1694,"d":"1694.00"}]
[{"$f":"A61+1","v":45},null,"- wykonanie warstwy odsączającej z mieszanki niezwiązanej gr. 25cm, 0/31,5 (CBR≥40, SE≥35) - drogi boczne","m2",{"v":8719.8,"d":"8719.80"}]
[null,"D.04.02.01a","Podłoże ulepszone z mieszanki niezwiązanej","x","x","x","x"]
[{"$f":"A62+1","v":46},null,"- warstwa grubości 20 cm, 0/31,5 (CBR≥40, SE≥35) - zjazdy publiczne","m2",{"v":409.9,"d":"409.90"}]
[{"$f":"A64+1","v":47},null,"- warstwa grubości 20 cm, 0/31,5 (CBR≥40, SE≥35) - zjazdy indywidualne","m2",{"v":10247.6,"d":"10,247.60"}]
[48,null,"- warstwa grubości 20 cm, 0/31,5 (CBR≥40, SE≥35) - zjazdy do zbiorników","m2",{"v":473,"d":"473.00"}]
[49,null,"- warstwa grubości 10 cm, 0/31,5 (CBR≥40, SE≥35) - ciągi piesze","m2",{"v":12736.9,"d":"12,736.90"}]
[50,null,"- warstwa grubości 10 cm, 0/31,5 (CBR≥40, SE≥35) - ciągi pieszo-rowerowe na terenie zabudowy","m2",{"v":11581.9,"d":"11,581.90"}]
[51,null,"- warstwa grubości 20 cm, 0/31,5 (CBR≥40, SE≥35) - ciągi pieszo-rowerowe na wysokości zjazdów","m2",{"v":840,"d":"840.00"}]
[52,null,"- warstwa grubości 10 cm, 0/31,5 (CBR≥40, SE≥35) - ciągi pieszo-rowerowe poza terenem zabudowy","m2",{"v":18256.7,"d":"18,256.70"}]
[53,null,"- warstwa grubości 10 cm, 0/31,5 (CBR≥40, SE≥35) - wyspy dzielące","m2",{"v":580.8,"d":"580.80"}]
[null,"D.04.02.01b","Podłoże ulepszone z mieszanki związanej hydraulicznie","x","x","x","x"]
[{"$f":"A71+1","v":54},null,"- warstwa grubości 25 cm (C1,5/2)","m2",{"v":1694,"d":"1,694.00"}]
[{"$f":"A73+1","v":55},null,"- warstwa grubości 25 cm (C1,5/2) - drogi boczne","m2",{"v":8719.8,"d":"8,719.80"}]
[null,"D.04.02.01c","Wymiana lub wzmocnienie gruntu","x","x","x","x"]
[{"$f":"A74+1","v":56},null,"- wymiana gruntu na grunt z materiału żwirowo-piaskowego o uziarnieniu 0/12,5 lub wzmocnienie gruntu","m2",{"v":58435,"d":"58435.00"}]
[null,"D.04.03.01","Oczyszczenie i skropienie warstw konstrukcyjnych","x","x","x","x"]
[{"$f":"A76+1","v":57},null,"- warstw konstrukcyjnych niebitumicznych","m2",178624.82]
[58,null,"- warstw konstrukcyjnych bitumicznych","m2","x","x","x"]
[59,null,"- warstwa ścieralna","m2",{"v":136824,"d":"136824.00"}]
[60,null,"- warstwa wiążąca","m2",{"v":110878.7,"d":"110878.70"}]
[61,null,"- podbudowa zasadnicza","m2",121709.95]
[null,"D.04.04.02","Podbudowa z mieszanki z kruszywa niezwiązanego","x","x","x","x"]
[{"$f":"A82+1","v":62},null,"- podbudowa zasadnicza z mieszanki niezwiązanej z kruszywa łamanego stabilizowanego mechanicznie 0/31,5,  (CBR≥60, SE≥40) gr. 20cm - zjazdy publiczne","m2",168.29]
[63,null,"- podbudowa zasadnicza z mieszanki niezwiązanej z kruszywa łamanego stabilizowanego mechanicznie 0/31,5,  (CBR≥60, SE≥40) gr. 20cm - zjazdy indywidualne","m2",{"v":6010.400000000001,"d":"6010.40"}]
[64,null,"- podbudowa zasadnicza z mieszanki niezwiązanej z kruszywa łamanego stabilizowanego mechanicznie 0/31,5,  (CBR≥60, SE≥40) gr. 22cm - zjazdy indywidualne","m2",{"v":4747.6,"d":"4747.60"}]
["64.1.",null,"- podbudowa zasadnicza z mieszanki niezwiązanej z kruszywa łamanego stabilizowanego mechanicznie 0/31,5,  (CBR≥60, SE≥40) gr. 22cm - zjazdy publiczne","m2",72.13]
[{"$f":"A86+1","v":65},null,"- podbudowa z mieszanki niezwiązanej z kruszywa łamanego stabilizowanego mechanicznie 0/31,5,  (CBR≥60, SE≥40) gr. 20cm - zjazdy do zbiorników","m2",{"v":473.00000000000006,"d":"473.00"}]
[66,null,"- podbudowa z mieszanki niezwiązanej z kruszywa łamanego stabilizowanego mechanicznie 0/31,5,  (CBR≥40, SE≥35) gr. 15cm - ciągi piesze","m2",12157.95]
[67,null,"- podbudowa z mieszanki niezwiązanej z kruszywa łamanego stabilizowanego mechanicznie 0/31,5,  (CBR≥40, SE≥35) gr. 15cm - ciągi pieszo-rowerowe na terenie zabudowy","m2",11055.45]
[68,null,"- podbudowa z mieszanki niezwiązanej z kruszywa łamanego stabilizowanego mechanicznie 0/31,5,  (CBR≥60, SE≥40) gr. 20cm - ciągi pieszo-rowerowe na wysokości zjazdów","m2",{"v":760,"d":"760.00"}]
[{"$f":"A90+1","v":68},null,"- podbudowa z mieszanki niezwiązanej z kruszywa łamanego stabilizowanego mechanicznie 0/31,5,  (CBR≥60, SE≥40) gr. 26cm - ciągi pieszo-rowerowe na wysokości zjazdów","m2",{"v":800,"d":"800.00"}]
[{"$f":"A92+1","v":69},null,"- podbudowa z mieszanki niezwiązanej z kruszywa łamanego stabilizowanego mechanicznie 0/31,5,  (CBR≥40, SE≥35) gr. 20cm - ciągi pieszo-rowerowe poza terenem zabudowy","m2",17426.85]
[70,null,"- podbudowa z mieszanki niezwiązanej z kruszywa łamanego stabilizowanego mechanicznie 0/31,5,  (CBR≥40, SE≥35) gr. 15cm - wyspy dzielące","m2",{"v":572,"d":"572.00"}]
[71,null,"- podbudowa z mieszanki niezwiązanej z kruszywa łamanego stabilizowanego mechanicznie 0/31,5,  (CBR≥40, SE≥35) gr. 25cm - zatoki autobusowe, powierzchnie przejezdne, pierścienie rond i miejsca postojowe","m2",3235.05]
[72,null,"- podbudowa z mieszanki niezwiązanej z kruszywa łamanego stabilizowanego mechanicznie 0/31,5,  (CBR≥60, SE≥40) gr. 20cm - drogi boczne","m2",{"v":15986.3,"d":"15986.30"}]
[null,"D.04.04.02a.","Podbudowa z mieszanki mineralno-cementowo-emulsyjnej","x","x","x","x"]
[{"$f":"A96+1","v":73},null,"- warstwa grubości 17 cm","m2",{"v":93383.3,"d":"93383.30"}]
[{"$f":"A98+1","v":74},null,"- warstwa grubości 17 cm z materiału z odzysku","m2",{"v":13067,"d":"13067.00"}]
[null,"D.04.06.01","Podbudowa z mieszanki związanej cementem C8/10 gr.25cm","x","x","x","x"]
[{"$f":"A99+1","v":75},null,"- w-wa podbudowygr. 25cm - zatoki autobusowe, pierścienie ronda, powierzchnie przejezdne i miejsca postojowe","m2",{"v":3235,"d":"3235.00"}]
[null,"D.04.07.01","Podbudowa bitumiczna. Podbudowa z betonu asfaltowego AC","x","x","x","x"]
[{"$f":"A101+1","v":76},null,"- w-wa podbudowy zasadniczej AC16P 50/70, gr. 8 cm drogi boczne KR2","m2",15259.65]
[null,"D.04.12.01","Warstwa ulepszonego podłoża","x","x","x","x"]
[{"$f":"A103+1","v":77},null,"- warstwa ulepszonego podłoża z gruntu stab.ziarnistym dodatkiem hydrofobowym gr.30cm z doziarnieniem i osuszeniem","m2",{"v":76140.8,"d":"76140.80"}]
[{"$f":"A105+1","v":78},null,"- warstwa ulepszonego podłoża z gruntu stab.ziarnistym dodatkiem hydrofobowym gr.30cm z materiału z odzysku","m2",{"v":29019,"d":"29019.00"}]
[null,"D.05.00.00","NAWIERZCHNIE","x","x","x"]
[{"$f":"A106+1","v":79},"D.05.02.01","Warstwa wiążąca z betonu asfaltowego AC 16W","x","x","x","x"]
[{"$f":"A108+1","v":80},null,"- warstwa wiążąca AC 16W PMB 45/80-65 grubości 8 cm DW 548","m2",{"v":110878.7,"d":"110878.70"}]
[{"$f":"A109+1","v":81},null,"- warstwa wiążąca AC 16W grubości 5 cm zjazdy","m2",{"v":4532,"d":"4532.00"}]
[null,"D.05.03.01","Nawierzchnia z betonu cementowego dyblowana i kotwiona gr.20cm","x","x","x","x"]
[{"$f":"A110+1","v":82},null,"- nawierzchnia zatok autobusowych","m2",{"v":1795,"d":"1795.00"}]
[{"$f":"A112+1","v":83},null,"- nawierzchnia miejsc postojowych","m2",{"v":1001,"d":"1001.00"}]
[{"$f":"A113+1","v":84},null,"- nawierzchnia powierzchni przejezdnych w rejonie skrzyżowań","m2",{"v":120,"d":"120.00"}]
[85,null,"- nawierzchnia pierścienia ronda","m2",{"v":165,"d":"165.00"}]
[null,"D.05.03.03.","Nawierzchnia z płyt betonowych","x","x","x","x"]
[{"$f":"A115+1","v":86},null,"- nawierzchnia z płyt betonowych typu IOMB 12x75x100cm a w-wie stabilizacji RM 1,5-2,5MPa wypełnioną mieszanką niezwiązaną 0/8","m2",{"v":430,"d":"430.00"}]
[null,"D.05.03.05a","Nawierzchnia z betonu asfaltowego AC 11S","x","x","x","x"]
[{"$f":"A117+1","v":87},null,"- ciągi pieszo-rowerowe poza terenem zabudowy, grubośc warstwy 5 cm","m2",{"v":16597,"d":"16597.00"}]
[{"$f":"A119+1","v":88},null,"- warstwa ścieralna z BA gr. 4 cm drogi boczne KR2","m2",{"v":14533,"d":"14533.00"}]
[{"$f":"A120+1","v":89},null,"- warstwa ścieralna z BA gr. 4 cm zjazdy","m2",{"v":4316,"d":"4316.00"}]
[null,"D.05.03.11","Frezowanie nawierzchni asfaltowej na zimno","x","x","x","x"]
[{"$f":"A121+1","v":90},null,"- frezowanie nawierzchni asfaltowej na zimno gr.średnio 5cm","m2",{"v":44703,"d":"44703.00"}]
[{"$f":"A123+1","v":91},null,"- frezowanie nawierzchni asfaltowej na zimno gr.średnio 10cm","m2",{"v":27900,"d":"27900.00"}]
[{"$f":"A124+1","v":92},null,"- frezowanie nawierzchni asfaltowej na zimno gr.średnio 25cm","m2",{"v":66280,"d":"66280.00"}]
[null,"D.05.03.13a.","Warstwa ścieralna z mieszanki mineralno-asfaltowej SMA","x","x","x","x"]
[{"$f":"A125+1","v":93},null,"- warstwa ścieralna SMA 8 PMB 45/80-65 gr. 4 cm DW 548 KR4","m2",{"v":105694,"d":"105694.00"}]
[null,"D.05.03.23","Nawierzchnia z betonowej kostki brukowej ","x","x","x","x"]
[{"$f":"A127+1","v":94},null,"- nawierzchnia z kostki betonowej gr. 8 cm, czerwonej, \n  układanej na w-wie stabilizacji RM 1,5-2,5MPa   gr. 3 cm - zjazdy indywidualne","m2",{"v":5464,"d":"5,464.00"}]
[{"$f":"A129+1","v":95},null,"- nawierzchnia z kostki betonowej gr. 8 cm, czerwonej, \n  układanej na w-wie stabilizacji RM 1,5-2,5MPa   gr. 3 cm - zjazdy publiczne","m2",218.56]
[{"$f":"A130+1","v":96},null,"- nawierzchnia z kostki betonowej bezfazowej gr. 8 cm, szarej, układanej  na podsypce z mieszanki niezwiązanej 0/4 gr. 3 cm - ciag pieszo-rowerowy","m2",{"v":10529,"d":"10,529.00"}]
[97,null,"- nawierzchnia z kostki betonowej gr. 8 cm, szarej, układanej  na podsypce z mieszanki niezwiązanej 0/4 gr. 3 cm - ciag pieszy","m2",{"v":11579,"d":"11,579.00"}]
[98,null,"- nawierzchnia z kostki betonowej gr. 8 cm,kolor, układanej  na podsypce z mieszanki niezwiązanej 0/4 gr. 3 cm - wyspy dzielące","m2",{"v":520,"d":"520.00"}]
[99,null,"- nawierzchnia z kostki betonowej gr. 8 cm, z wypustkami\n  (integracyjnej),  układanej na podsypce z mieszanki niezwiązanej 0/4 gr. 3 cm ","m2",{"v":104,"d":"104.00"}]
[100,null,"- nawierzchnia z kostki betonowej gr. 8 cm, szarej, \n  układanej na podsypce z mieszanki niezwiązanej 0/4 gr. 3 cm z materiału z odzysku","m2",{"v":120,"d":"120.00"}]
[101,null,"- nawierzchnia z kostki betonowej bezfazowejgr. 8 cm, szarej,   układanej na podsypce z mieszanki niezwiązanej 0/4   gr. 3 cm z materiału z odzysku","m2",{"v":365,"d":"365.00"}]
[102,null,"- nawierzchnia z kostki betonowej gr. 8 cm, czerwonej, \n  układanej na w-wie stabilizacji RM 1,5-2,5MPa gr. 3 cm z materiału z odzysku","m2",{"v":50,"d":"50.00"}]
[103,null,"- nawierzchnia wysp dzielących z kostki betonowej gr. 8 cm, szarej, układanej na podsypce z mieszanki niezwiązanej 0/4 gr. 3 cm ","m2",{"v":528,"d":"528.00"}]
[null,"D.05.04.02","Połączenie konstrukcji nowej nawierzchni z istniejącą","x","x","x","x"]
[{"$f":"A138+1","v":104},null,"- powiązanie z drogami istniejącymi - siatka szklana","m2",{"v":560,"d":"560.00"}]
[null,"D.06.00.00","ROBOTY WYKOŃCZENIOWE","x","x","x"]
[null,"D.06.01.01","Umocnienie powierzchniowe skarp, rowów i ścieków","x","x","x","x"]
[{"$f":"A140+1","v":105},null,"- humusowanie wraz z obsianiem 10cm (skarpy)","m2",{"v":99045,"d":"99045.00"}]
[{"$f":"A143+1","v":106},null,"- humusowanie wraz z obsianiem gr. 10cm (tereny zielone w pasie drogowym)","m2",{"v":24314,"d":"24314.00"}]
[null,"D.06.02.01"," - umocnienie skarp płytami betonowymi","x","x","x","x"]
[{"$f":"A144+1","v":107},null,"- wzmocnienie powierzchniowe płytami ażurowymi","m2",{"v":1735,"d":"1735.00"}]
[null,"D.06.03.01","Pobocze gruntowe z mieszanki niezwiązanej z kruszywa łamanego stabilizowanego mechanicznie 0/31,5, grubość warstwy 15cm","x","x","x","x"]
[{"$f":"A146+1","v":108},null,"- DW548, drogi boczne","m2",{"v":52432,"d":"52432.00"}]
[109,null,"- zjazdy indywidualne, zjazdy publiczne","m2",{"v":578,"d":"578.00"}]
[null,"D.07.00.00","URZĄDZENIA BEZPIECZEŃSTWA RUCHU","x","x","x"]
[null,"D.07.01.01","Oznakowanie poziome","x","x","x","x"]
[{"$f":"A149+1","v":110},null,"- linie na skrzyżowaniach - grubowarstwowe - (P-10, P-13, P-14, P-1d, P-1e, P-21a)","m2",{"v":1321,"d":"1321.00"}]
[111,null,"- linie przerywane - grubowarstwowe - (P-7a)","m2",{"v":565,"d":"565.00"}]
[112,null,"- linie ciągłe - grubowarstwowe - (P-2b, P-4, P-7b, P-17)","m2",{"v":4268,"d":"4268.00"}]
[113,null,"- strzałki i inne symbole  - grubowarstwowe - (P-23, P-25, P-27)","m2",{"v":120,"d":"120.00"}]
[114,null,"- punktowe elementy odblaskowe typ 1","szt.",{"v":311,"d":"311.00"}]
[115,null,"- punktowe elementy odblaskowe typ 5","szt.",{"v":288,"d":"288.00"}]
[116,null,"- punktowe elementy odblaskowe typ 7","szt.",{"v":744,"d":"744.00"}]
[null,"D.07.02.01","Oznakowanie pionowe i konstrukcje wsporcze","x","x","x","x"]
[{"$f":"A158+1","v":117},null,"- słupki do znaków drogowych","szt.",{"v":353,"d":"353.00"}]
[118,null,"- tarcze znaków ostrzegawczych \"A\"","szt.",{"v":96,"d":"96.00"}]
[119,null,"- tarcze znaków zakazu \"B\"","szt.",{"v":82,"d":"82.00"}]
[120,null,"- tarcze znaków nakazu \"C\"","szt.",{"v":88,"d":"88.00"}]
[121,null,"- tarcze znaków informacyjnych \"D\"","szt.",{"v":121,"d":"121.00"}]
[122,null,"- tablice kierunku i miejscowości \"E\"","szt.",{"v":56,"d":"56.00"}]
[{"$f":"A165+1","v":123},null,"- tarcze znaków uzupełniających \"F\"","szt.",{"v":2,"d":"2.00"}]
[124,null,"- tabliczki do znaków drogowych \"T\"","szt.",{"v":39,"d":"39.00"}]
[125,null,"- urządzenia bezpieczeństwa ruchu \"U\" w gniazdach RS","szt.",{"v":30,"d":"30.00"}]
[126,null,"- pylony ostrzegawcze U-5 w gniazdach RS","szt.",{"v":31,"d":"31.00"}]
[127,null,"- tablice znaków \"G\"","szt.",{"v":6,"d":"6.00"}]
[{"$f":"A170+1","v":128},null,"- konstrukcje wsporcze dla tablic","kpl",{"v":16,"d":"16.00"}]
[{"$f":"A171+1","v":129},"D.07.02.02","Słupki prowadzące i krawędziowe","szt",{"v":287,"d":"287.00"}]
[null,"D.07.05.01","Bariery ochronne stalowe ","x","x","x","x"]
[{"$f":"A172+1","v":130},null,"- N2/W3/A","mb",{"v":409,"d":"409.00"}]
[131,null,"- N2/W3/A z poręczą","mb",{"v":423,"d":"423.00"}]
[null,"D.07.06.03","Urządzenia zabezpieczające ruch pieszych. Balustrady dla pieszych","x","x","x","x"]
[{"$f":"A175+1","v":132},null,"- U-12","mb",{"v":856,"d":"856.00"}]
["132.1",null,"- U-11","mb",{"v":2000,"d":"2000.00"}]
[null,"D.08.00.00","ELEMENTY ULIC","x","x","x"]
[null,"D.08.01.01","Krawężniki betonowe na ławie betonowej","x","x","x","x"]
[{"$f":"A177+1","v":133},null,"- krawężnik betonowy 20x30x100","mb",{"v":12151,"d":"12,151.00"}]
[134,null,"- krawężnik betonowy obniżony 4 cm 20x22x100","mb",{"v":2250,"d":"2,250.00"}]
[135,null,"- krawężnik betonowy obniżony 0 cm 12x25x100","mb",{"v":1129,"d":"1,129.00"}]
[136,null,"- krawężniki betonowe z materiału z odzysku","mb",{"v":1130,"d":"1,130.00"}]
[null,"D.08.01.02","Krawężniki kamienne na  ławie betonowej ","x","x","x","x"]
[{"$f":"A184+1","v":137},null,"- krawężnik kamienny obniżony 20x22x100","mb",{"v":220,"d":"220.00"}]
[null,"D.08.02.01","Betonowe obrzeża chodnikowe na ławie betonowej","x","x","x","x"]
[{"$f":"A186+1","v":138},null,"- betonowe obrzeża chodnikowe 8x30x100 cm na  ławie betonowej","mb",{"v":22636,"d":"22636.00"}]
[{"$f":"A188+1","v":139},null,"- betonowe obrzeża chodnikowe z materiału z odzysku","mb",{"v":2496.5,"d":"2496.50"}]
[null,"D.08.03.01","Palisada betonowa","x","x","x","x"]
[{"$f":"A189+1","v":140},null,"- betonowa palisada 18x18x120cm","mb",{"v":351,"d":"351.00"}]
[null,"D.08.05.01","Ścieki korytkowe z prefabrykowanych elementów betonowych","x","x","x","x"]
[{"$f":"A191+1","v":141},null,"- ściek muldowy 50x60x15","mb",{"v":4225,"d":"4225.00"}]
[{"$f":"A193+1","v":142},null,"- ściek muldowy 50x60x15 z materiału z odzysku","mb",{"v":53,"d":"53.00"}]
[{"$f":"A194+1","v":143},"D.08.05.02","Ścieki skarpowe z prefabrykowanych elementów betonowych","mb",{"v":48,"d":"48.00"}]
[{"$f":"A195+1","v":144},"D.08.05.03.","Ścieki z brukowej kostki betonowej","mb",{"v":1276,"d":"1,276.00"}]
[null,"D.09.00.00","ZIELEŃ DROGOWA","x","x","x"]
[null,"D.09.01.01","Nasadzenia","x","x","x","x"]
[{"$f":"A196+1","v":145},null,"- klon","szt.",{"v":364,"d":"364.00"}]
[{"$f":"A199+1","v":146},null,"- jesion","szt.",{"v":401,"d":"401.00"}]
[147,null,"- grab","szt.",{"v":42,"d":"42.00"}]
[148,null,"- lipa","szt.",{"v":417,"d":"417.00"}]
[149,null,"- dąb","szt.",{"v":40,"d":"40.00"}]
[null,"D.10.00.00","INNE ROBOTY","x","x","x"]
[null,"D.10.01.01","Ogrodzenia","x","x","x","x"]
[{"$f":"A203+1","v":150},null,"- ogrodzenia tymczasowe posesji z siatki leśnej","mb",{"v":756,"d":"756.00"}]
[{"$f":"A206+1","v":151},null,"- regulacja wysokościowa bram wjazdowych na posesje","kpl",{"v":15,"d":"15.00"}]
[{"$f":"A207+1","v":152},null,"- odgrodzenie zbiorników","mb",{"v":610,"d":"610.00"}]
[153,"D.10.01.01","- Schody","kpl.",{"v":14,"d":"14.00"}]
[154,"D.10.04.02A","- Budowa stacji meteorologicznej","kpl.",{"v":1,"d":"1.00"}]
[155,"D.10.08.01","- Inwentaryzacja geodezyjna powykonawcza","kpl.",{"v":1,"d":"1.00"}]
[{"$f":"C3","v":"Roboty drogowe"}]
[]
[]
[]
[null,"________________",null,"______________"]
[null,"miejscowość, data",null,"podpis Wykonawcy"]

{"sheet":"Roboty inżynieryjne","index":3,"n_rows":108,"n_cols":7,"rows_kept":108,"merged":[[0,0,0,6],[1,0,1,6],[2,0,3,0],[2,1,3,1],[2,2,3,2],[2,3,2,4],[2,5,3,5],[2,6,3,6],[4,0,4,6],[46,0,46,6],[67,0,67,6],[100,1,100,5]]}
["Aktualizacja i optymalizacja dokumentacji projektowej zadania wraz z pełnieniem nadzoru autorskiego podczas realizacji Inwestycji tj.: \"Rozbudowa drogi wojewódzkiej nr 548 Stolno-Wąbrzeźno od km 0+005 do km 29+619 z wyłączeniem węzła autostradowego w m. Lisewo od km 14+144 do km 15+146"]
["ROBOTY INŻYNIERYJNE 22.07"]
["L.p.","Numer \nSTWiORB","Wyszczególnienie elementu rozliczeniowego","Jednostka",null,"Cena jednostkowa","Wartość robót"]
[{"$nulls":3},"Nazwa","Ilość"]
["PRZEPUST KM 1+491,50"]
[null,"M.01.00.00.","Roboty przygotowawcze","x","x","x","x"]
[null,"M.01.01.00.","Obsługa geodezyjna budowy","x","x","x","x"]
[1,"M.01.01.01.","Wytyczenie drogowego obiektu inżynierskiego","kpl",{"v":1,"d":"1.00"}]
[null,"M.11.00.00.","Fundamentowanie","x","x","x","x"]
[null,"M.11.01.00.","Roboty ziemne","x","x","x","x"]
[{"$f":"A8+1","v":2},"M.11.01.03.","Wykopy pod fundamenty w gruncie spoistym z czasowym zabezpieczeniem","m3",{"v":1847,"d":"1,847.00"}]
[null,"M.11.01.05.","Zasypanie wykopów fundamentowych oraz przestrzeni wokół przepustów wraz z zagęszczeniem","x","x","x","x"]
[{"$f":"A11+1","v":3},null,"- fundament kruszywowy","m3",{"v":45.6,"d":"45.60"}]
[{"$f":"A13+1","v":4},null,"- geotkanina polipropylenowa","m2",{"v":130.5,"d":"130.50"}]
[{"$f":"A14+1","v":5},null,"- zasypka inżynierska przepustu","m3",{"v":260,"d":"260.00"}]
[{"$f":"A15+1","v":6},null,"- zasypanie wykopu wraz z zagęszczeniem","m3",{"v":1278.5,"d":"1,278.50"}]
[null,"M.12.00.00.","ZBROJENIE","x","x","x","x"]
[null,"M.12.01.00.","Stal zbrojeniowa","x","x","x","x"]
[{"$f":"A16+1","v":7},"M.12.01.03.","Zbrojenie betonu stalą klasy A-IIIN","kg",{"v":3634.4,"d":"3,634.40"}]
[null,"M.13.00.00.","Beton","x","x","x","x"]
[null,"M.13.01.00.","Beton konstrukcyjny","x","x","x","x"]
[{"$f":"A19+1","v":8},null,"- podparcie dla wieńca z betonu C30/37","m3",{"v":5,"d":"5.00"}]
[{"$f":"A22+1","v":9},null,"- wieniec żelbetowy z betonu C30/37","m3",{"v":6,"d":"6.00"}]
[{"$f":"A23+1","v":10},null,"- fundament ściany oporowej z betonu C25/30","m3",{"v":5.6,"d":"5.60"}]
[{"$f":"A24+1","v":11},null,"- zwieńczenie żelbetowe z betonu C25/30","m3",{"v":14,"d":"14.00"}]
[null,"M.13.03.00.","Prefabrykaty betonowe","x","x","x","x"]
[{"$f":"A25+1","v":12},null,"- deska gzymsowa h=600mm","m",{"v":45,"d":"45.00"}]
[null,"M.15.00.00.","Izolacje i nawierzchnie","x","x","x","x"]
[null,"M.15.01.00.","Izolacje i nawierzchnie na obiektach","x","x","x","x"]
[{"$f":"A27+1","v":13},"M.15.01.03.","Izolacje bitumiczne wykonywane na zimno","m2",{"v":30.5,"d":"30.50"}]
[null,"M.19.00.00.","Urządzenia zabezpieczające","x","x","x","x"]
[{"$f":"A30+1","v":14},"M.19.01.04","Balustrady na ściankach czołowych przepustów","m",{"v":45,"d":"45.00"}]
[null,"M.20.00.00.","Inne roboty mostowe","x","x","x","x"]
[{"$f":"A32+1","v":15},"M.20.01.03.","Umocnienie stożków i skarp","m2",{"v":10.5,"d":"10.50"}]
[{"$f":"A34+1","v":16},"M.20.01.10.","Umocnienie dna i skarp cieku","m2",{"v":360,"d":"360.00"}]
[null,"M.20.01.12.","Wygrodzenia dla płazów","x","x","x","x"]
[{"$f":"A35+1","v":17},null,"- kładka dla zwierząt","szt.",{"v":4,"d":"4.00"}]
[null,"M.20.01.15.","Przepusty z blachy falistej","x","x","x","x"]
[{"$f":"A37+1","v":18},null,"- rura stalowa d=2800 mm","m",{"v":16,"d":"16.00"}]
[{"$f":"A39+1","v":19},null,"- stalowa półka dla zwierząt szer. 0,5 m","m",{"v":32,"d":"32.00"}]
[{"$f":"A40+1","v":20},null,"- element złazowy półki dla zwierząt szer. 0,5 m","m",{"v":6,"d":"6.00"}]
[{"$f":"A41+1","v":21},"M.20.01.16.","Ściany oporowe z bloczków prefabrykowanych","m2",240]
[null,"M.21.00.00.","Roboty rozbiórkowe i remontowe","x","x","x","x"]
[null,"M.21.01.03.","Rozbiórka elementów betonowych, żelbetowych i ceglanych","x","x","x","x"]
[{"$f":"A42+1","v":22},null,"- konstrukcja przepustu w km 1+506 - konstrukcja z cegły","m3",{"v":163.5,"d":"163.50"}]
[{"$f":"A45+1","v":23},null,"- konstrukcja przepustu w km 1+506 - konstrukcja z kamienia","m3",{"v":36.8,"d":"36.80"}]
["PRZEPUST KM 11+006,00"]
[null,"M.01.00.00.","Roboty przygotowawcze","x","x","x","x"]
[null,"M.01.01.00.","Obsługa geodezyjna budowy","x","x","x","x"]
[{"$f":"A46+1","v":24},"M.01.01.01.","Wytyczenie drogowego obiektu inżynierskiego","kpl",{"v":1,"d":"1.00"}]
[null,"M.11.00.00.","FUNDAMENTOWANIE","x","x","x","x"]
[null,"M.11.01.00.","Roboty ziemne","x","x","x","x"]
[{"$f":"A50+1","v":25},"M.11.01.03.","Wykopy pod fundamenty w gruncie spoistym z czasowym zabezpieczeniem","m3",{"v":620.5,"d":"620.50"}]
[null,"M.11.01.05.","Zasypanie wykopów fundamentowych oraz przestrzeni wokół przepustów wraz z zagęszczeniem","x","x","x","x"]
[{"$f":"A53+1","v":26},null,"- fundament kruszywowy","m3",{"v":61.5,"d":"61.50"}]
[null,null,"- geotkanina polipropylenowa","m2",{"v":210.2,"d":"210.20"}]
[{"$f":"A55+1","v":27},null,"- zasypka inżynierska przepustu","m3",{"v":255.8,"d":"255.80"}]
[{"$f":"A57+1","v":28},null,"- zasypanie wykopu wraz z zagęszczeniem","m3",{"v":125.5,"d":"125.50"}]
[null,"M.20.00.00.","Inne roboty mostowe","x","x","x","x"]
[{"$f":"A58+1","v":29},"M.20.01.03.","Umocnienie stożków i skarp","m2",{"v":35.5,"d":"35.50"}]
[{"$f":"A60+1","v":30},"M.20.01.10.","Umocnienie dna i skarp cieku","m2",{"v":45,"d":"45.00"}]
[null,"M.20.01.12.","Wygrodzenia dla płazów","x","x","x","x"]
[{"$f":"A61+1","v":31},null,"- kładka dla zwierząt","szt.",{"v":2,"d":"2.00"}]
[null,"M.20.01.15.","Przepusty z blachy falistej","x","x","x","x"]
[{"$f":"A63+1","v":32},null,"- rura stalowa d=2100 mm","m",21.24]
[{"$f":"A65+1","v":33},null," - stalowa półka dla zwierząt szer. 0,5 m","m",42.48]
[{"$f":"A66+1","v":34},null,"- element złazowy półki dla zwierząt szer. 0,5 m","m",{"v":5.6,"d":"5.60"}]
["Przepusty rurowe"]
[null,"M.01.00.00.","Roboty przygotowawcze","x","x","x","x"]
[null,"M.01.01.00.","Obsługa geodezyjna budowy","x","x","x","x"]
[{"$f":"A67+1","v":35},"M.01.01.01.","Wytyczenie drogowego obiektu inżynierskiego","kpl",{"v":83,"d":"83.00"}]
[null,"M.11.00.00.","Fundamentowanie","x","x","x","x"]
[null,"M.11.01.00.","Roboty ziemne","x","x","x","x"]
[{"$f":"A71+1","v":36},"M.11.01.03.","Wykopy pod fundamenty w gruncie spoistym z czasowym zabezpieczeniem","m3",{"v":10300,"d":"10,300.00"}]
[null,"M.11.01.05.","Zasypanie wykopów fundamentowych oraz przestrzeni wokół przepustów wraz z zagęszczeniem","x","x","x","x"]
[{"$f":"A74+1","v":37},null,"- podbudowa z pospółki gr. 15 cm","m3",{"v":1650,"d":"1,650.00"}]
[{"$f":"A76+1","v":38},null,"- zasypka żwirowa przepustu","m3",{"v":7910,"d":"7,910.00"}]
[null,"M.13.00.00.","Beton","x","x","x","x"]
[null,"M.13.01.00.","Beton konstrukcyjny","x","x","x","x"]
[{"$f":"A77+1","v":39},null,"- beton fundamentów przepustu C30/37","m3",{"v":46,"d":"46.00"}]
[null,"M.15.00.00.","Izolacje i nawierzchnie","x","x","x","x"]
[null,"M.15.01.00.","Izolacje i nawierzchnie na obiektach","x","x","x","x"]
[{"$f":"A80+1","v":40},"M.15.01.03.","Izolacje bitumiczne wykonywane na zimno","m2",{"v":185.5,"d":"185.50"}]
[null,"M.20.00.00.","Inne roboty mostowe","x","x","x","x"]
[{"$f":"A83+1","v":41},"M.20.01.03.","Umocnienie stożków i skarp","m2",{"v":1485,"d":"1,485.00"}]
[null,"M.20.01.06","Przepusty z rur PEHD","x","x","x","x"]
[{"$f":"A85+1","v":42},null,"- przepusty z rur PEHD d=400mm","m",624.65]
[{"$f":"A87+1","v":43},null,"- przepusty z rur PEHD d=600mm","m",90.65]
[{"$f":"A88+1","v":44},null,"- przepusty z rur PEHD d=800mm","m",{"v":389.59999999999997,"d":"389.60"}]
[{"$f":"A89+1","v":45},null,"- przepusty z rur PEHD d=1200mm","m",{"v":66,"d":"66.00"}]
[{"$f":"A90+1","v":46},"M.20.01.10.","Umocnienie dna i skarp cieku","m2",{"v":2575,"d":"2,575.00"}]
[null,"M.21.00.00.","Roboty rozbiórkowe i remontowe","x","x","x","x"]
[null,"M.21.01.03.","Rozbiórka elementów betonowych, żelbetowych\ni ceglanych","x","x","x","x"]
[{"$f":"A91+1","v":47},null,"- rozbiórka przepustów z cegły","m3",{"v":57,"d":"57.00"}]
[{"$f":"A94+1","v":48},null,"- rozbiórka przepustów rurowych","m",{"v":171,"d":"171.00"}]
[null,null,"Rozbiórka przepustów rurowych pod zjazdami","x","x","x","x"]
[{"$f":"A95+1","v":49},null,"- przepusty z rur PEHD d=500mm","m",{"v":238.76999999999998,"d":"238.77"}]
[{"$f":"A97+1","v":50},null,"- przepusty z rur PEHD d=600mm","m",{"v":23.5,"d":"23.50"}]
[{"$f":"A98+1","v":51},null,"- przepusty z rur PEHD d=800mm","m",{"v":154.39999999999998,"d":"154.40"}]
[52,null,"- przepusty z rur PEHD d=1200mm","m",{"v":66,"d":"66.00"}]
[null,"RAZEM ROBOTY INŻYNIERYJNE"]
[]
[]
[]
[]
[]
[null,"__________",null,"______________"]
[null,"miejscowość, data",null,"podpis Wykonawcy"]

{"sheet":"KD","index":4,"n_rows":57,"n_cols":7,"rows_kept":57,"merged":[[0,0,0,6],[1,0,1,1],[1,2,1,6],[2,0,2,1],[2,2,2,6],[3,0,3,1],[3,2,3,6],[49,1,49,5]]}
[{"$f":"DANE!B3","v":"Aktualizacja i optymalizacja dokumentacji projektowej zadania wraz z pełnieniem nadzoru autorskiego podczas realizacji Inwestycji tj.: ”Rozbudowa drogi wojewódzkiej nr 548 Stolno-Wąbrzeźno od km 0+005 do km 29+619 z wyłączeniem węzła autostradowego w m. Lisewo od km 14+144 do km 15+146” \nOdcinek nr 1 – od km 0+005 do km 14+144"}]
["Branża: ",null,"BRANŻA SANITARNA 22.07"]
["Obiekt:",null,"Kanalizacja Deszczowa"]
["Kod CPV:",null,"45000000-9\nRoboty budowlane w zakresie wznoszenia kompletnych obiektów budowlanych lub ich części oraz roboty w zakresie inżynierii lądowej i wodnej "]
["Poz.","Podstawa wyceny","Wyszczególnienie elementu rozliczeniowego","Jedn.","Ilość jedn.","Cena jedn.","Wartość robót"]
[null,"U.01.01.01","ODWODNIENIE KORPUSU DROGOWEGO","x","x","x","x"]
[1,"U.01.01.01","Budowa kanalizacji deszczowej","x","x","x","x"]
[2,"U.01.01.01","- ciąg główny kanalizacji","x","x","x","x"]
[3,"U.01.01.01","- wykonanie wykopów liniowych dla budowy \n  kanałów głównych","m3",{"v":5853.6,"d":"5,853.60"}]
[4,"U.01.01.01","- pełne umocnienie pionowych ścian wykopów liniowych","m2",{"v":9756,"d":"9,756.00"}]
[5,"U.01.01.01","- podsypka piaskowa, grubości 10 cm ","m2",234.14]
[6,"U.01.01.01","- montaż kanałów z rur PCV d=200mm","m",{"v":42,"d":"42.00"}]
[7,"U.01.01.01","- montaż kanałów z rur PCV d=315mm","m",{"v":500,"d":"500.00"}]
[8,"U.01.01.01","- montaż kanałów z rur PCV d=400mm","m",{"v":749.2,"d":"749.20"}]
[9,"U.01.01.01","- montaż kanałów z rur PCV d=500mm","m",{"v":372,"d":"372.00"}]
[10,"U.01.01.01","- montaż kanałów z rur VIPRO d=600mm","m",{"v":457,"d":"457.00"}]
[11,"U.01.01.01","- montaż rurociągu tłocznego z rur PE d=400mm","m",{"v":288,"d":"288.00"}]
[12,"U.01.01.01","- obsypka piaskowa kanałów i rurociągów - 30cm \n  nad wierzch rur","m3",{"v":1613.57,"d":"1,613.57"}]
[13,"U.01.01.01","- zasypanie wykopów liniowych z zagęszczeniem","m3",{"v":4005.89,"d":"4,005.89"}]
[14,"U.01.01.01","- wykonanie wykopów obiektowych dla zabudowy studni,\n  pompowni, osadników","m3",{"v":2052,"d":"2,052.00"}]
[15,"U.01.01.01","- pełne umocnienie pionowych ścian wykopów obiektowych","m2",{"v":912,"d":"912.00"}]
[16,"U.01.01.01","- zabudowa studni z kregów betonowych d=1200mm","kpl",{"v":55,"d":"55.00"}]
[17,"U.01.01.01","- zabudowa studni wpadowych z kregów betonowych\n   d=1200mm","kpl",{"v":2,"d":"2.00"}]
[18,"U.01.01.01","- zabudowa studni z kregów betonowych d=1400mm","kpl",{"v":12,"d":"12.00"}]
[19,"U.01.01.01","- zabudowa studni wpadowych z kregów\n   betonowych d=1400mm","kpl",{"v":1,"d":"1.00"}]
[20,"U.01.01.01","Studzienka rozprężna 1200","szt.",{"v":2,"d":"2.00"}]
[21,"U.01.01.01","- zabudowa osadników d=1200mm","kpl",{"v":2,"d":"2.00"}]
[22,"U.01.01.01","- zabudowa osadników wirowych d=1500mm","kpl",{"v":2,"d":"2.00"}]
[23,"U.01.01.01","- zasypanie wykopów obiektowych z zagęszczeniem","m3",{"v":1641.6,"d":"1,641.60"}]
[24,"U.01.01.01","Regulacja włazów istniejących studzienek","szt.",{"v":110,"d":"110.00"}]
[25,"U.01.01.01","Wylot do rowy DN400","szt.",{"v":4,"d":"4.00"}]
[26,"U.01.01.01","Wylot do rowy DN500","szt.",{"v":2,"d":"2.00"}]
[27,"U.01.01.01","- przykanaliki i wpusty","x","x","x","x"]
[28,"U.01.01.01","- wykonanie wykopów liniowych dla budowy\n   przykanalików","m3",{"v":2570.4,"d":"2,570.40"}]
[29,"U.01.01.01","- pełne umocnienie pionowych ścian wykopów liniowych","m2",{"v":4284,"d":"4,284.00"}]
[30,"U.01.01.01","- podsypka piaskowa, grubości 10 cm","m2",{"v":142.8,"d":"142.80"}]
[31,"U.01.01.01","- montaż kanałów z rur PCV d=200mm SN8","m",{"v":1362,"d":"1,362.00"}]
[32,"U.01.01.01","- montaż kanałów z rur PCV d=200mm SN12","m",{"v":66,"d":"66.00"}]
[33,"U.01.01.01","- obsypka piaskowa kanałów  - 30cm nad wierzch rur","m3",{"v":714,"d":"714.00"}]
[34,"U.01.01.01","- zasypanie wykopów liniowych z zagęszczeniem","m3",{"v":1713.6,"d":"1,713.60"}]
[35,"U.01.01.01","- zabudowa wpustów z prefabrykowanych elementów \n  betonowych d=500mm","kpl",{"v":249,"d":"249.00"}]
[36,"U.01.01.01","demontarz istniejących wpustów DN500","kpl",{"v":29,"d":"29.00"}]
[37,"U.01.01.01","Regulacja istniejących studzienek i wpustów","x","x","x","x"]
[38,"U.01.01.01","Regulacja istniejących włazów studzienek z wymianą pierścieni odciążających","szt.",{"v":16,"d":"16.00"}]
[39,"U.01.01.01","Regulacja istniejących wpustów","szt.",{"v":163,"d":"163.00"}]
[40,"U.01.01.01","Montaż rury osłonowej dwudzielnej DN315","m",{"v":124.5,"d":"124.50"}]
[41,"U.01.01.01","Montaż rury osłonowej dwudzielnej DN400","m",9.35]
[42,"U.01.01.01","Wposażenie pompowni P-1 wraz z rozruchem","kpl",{"v":1,"d":"1.00"}]
[43,"U.01.01.01","Wposażenie pompowni P-2 wraz z rozruchem","kpl",{"v":1,"d":"1.00"}]
[null,"RAZEM KANALIZACJA DESZCZOWA"]
[]
[]
[]
[]
[]
[null,"________________",null,"______________"]
[null,"miejscowość, data",null,"podpis Wykonawcy"]

{"sheet":"W","index":5,"n_rows":41,"n_cols":7,"rows_kept":41,"merged":[[0,0,0,6],[1,0,1,1],[1,2,1,6],[2,0,2,1],[2,2,2,6],[3,0,3,1],[3,2,3,6],[33,1,33,5]]}
[{"$f":"DANE!B3","v":"Aktualizacja i optymalizacja dokumentacji projektowej zadania wraz z pełnieniem nadzoru autorskiego podczas realizacji Inwestycji tj.: ”Rozbudowa drogi wojewódzkiej nr 548 Stolno-Wąbrzeźno od km 0+005 do km 29+619 z wyłączeniem węzła autostradowego w m. Lisewo od km 14+144 do km 15+146” \nOdcinek nr 1 – od km 0+005 do km 14+144"}]
["Branża: ",null,"BRANŻA SANITARNA 22.07"]
["Obiekt:",null,"Wodociąg"]
["Kod CPV:",null,"45000000-9\nRoboty budowlane w zakresie wznoszenia kompletnych obiektów budowlanych lub ich części oraz roboty w zakresie inżynierii lądowej i wodnej "]
["Poz.","Podstawa wyceny","Wyszczególnienie elementu rozliczeniowego","Jedn.","Ilość jedn.","Cena jedn.","Wartość robót"]
[null,"U.01.01.03","Przebudowa sieci wodociągowej","x","x","x","x"]
[1,"U.01.01.03","- wykopy liniowe dla budowy wodociągu z umocnieniem","m3",{"v":4454.18,"d":"4,454.18"}]
[2,"U.01.01.03","- podsypka piaskowa pod rurociągami gr. 10 cm","m2",247.45]
[3,"U.01.01.03","- ułożenie rur osłonowych PE100 SDR17 Dz90","mb",{"v":37.3,"d":"37.30"}]
[4,"U.01.01.03","- ułożenie rur osłonowych PE100 SDR17 Dz110","mb",222.23]
[5,"U.01.01.03","- ułożenie rur osłonowych PE100 SDR17 Dz150","mb",{"v":10.5,"d":"10.50"}]
[6,"U.01.01.03","- ułożenie rur osłonowych PE100 SDR17 Dz225","mb",{"v":104.7,"d":"104.70"}]
[7,"U.01.01.03","- ułożenie rur osłonowych PE100 SDR17 Dz250","mb",{"v":310.9,"d":"310.90"}]
[8,"U.01.01.03","- ułożenie rur osłonowych PE100 SDR17 Dz315","mb",{"v":83.2,"d":"83.20"}]
[9,"U.01.01.03","- montaż rurociagów z rur PEHD SDR11 PN16 Dz40","mb",149.11]
[10,"U.01.01.03","- montaż rurociagów z rur PEHD SDR11 PN16 Dz50","mb",{"v":241.59000000000003,"d":"241.59"}]
[11,"U.01.01.03","- montaż rurociagów z rur PEHD SDR11 PN16 Dz75","mb",11.18]
[12,"U.01.01.03","- montaż rurociagów z rur PEHD SDR11 PN16 Dz90","mb",198.74]
[2252,"U.01.01.03","- montaż rurociagów z rur PEHD SDR11 PN16  Dz110","mb",{"v":2252.6,"d":"2,252.60"}]
[14,"U.01.01.03","- montaż rurociagów z rur PEHD SDR11 PN16  Dz160","mb",{"v":239.96000000000004,"d":"239.96"}]
[15,"U.01.01.03","- montaż zasuw żeliwnych, kołnierzowych Dn50 \n   z obudowa teleskopową,  z skrzynką do zasuw","szt",{"v":13,"d":"13.00"}]
[16,"U.01.01.03","- montaż zasuw żeliwnych, kołnierzowych Dn80\n   z obudowa teleskopową,  z skrzynką do zasuw","szt",{"v":6,"d":"6.00"}]
[17,"U.01.01.03","- montaż zasuw żeliwnych, kołnierzowych Dn100 \n  z obudowa teleskopową, z skrzynką do zasuw","szt",{"v":33,"d":"33.00"}]
[18,"U.01.01.03","- montaż zasuw żeliwnych, kołnierzowych Dn150\n   z obudowa teleskopową, z skrzynką do zasuw","szt",{"v":7,"d":"7.00"}]
[19,"U.01.01.03","- montaż hydrantów nadziemnych, żeliwnych z zasuwą\n   Dn80","szt",{"v":17,"d":"17.00"}]
[20,"U.01.01.03","- montaż hydrantów podziemnych, żeliwnych z zasuwą\n   Dn80","szt",{"v":1,"d":"1.00"}]
[21,"U.01.01.03","- zabudowa studzienki wodomierzowej, d=1200mm \n  kompletnie wyposażonej","kpl",{"v":1,"d":"1.00"}]
[22,"U.01.01.03","- próba szczelności sieci wodociagowej","mb",{"v":3093.1800000000003,"d":"3,093.18"}]
[23,"U.01.01.03","- płukanie i dezynfekcja wodociagu","mb",{"v":3093.1800000000003,"d":"3,093.18"}]
[24,"U.01.01.03","- obsypka piaskowa rurociagów - 30cm nad wierzch rury","m3",989.82]
[25,"U.01.01.03","- zasypanie wykopów z zagęszczeniem"," ",{"v":3439.62,"d":"3,439.62"}]
[26,"U.01.01.03","- demontaż istniejących sieci wodociągowych\n   wraz z armaturą","mb",{"v":1850,"d":"1,850.00"}]
[27,"U.01.01.03","Regulacja istniejących skrzynek armatury","szt",{"v":45,"d":"45.00"}]
[null,"RAZEM WODOCIĄG",{"$nulls":4},{"$f":"SUM(G7:G33)","v":{"v":0,"d":"0.00"}}]
[]
[]
[]
[]
[]
[null,"________________",null,"______________"]
[null,"miejscowość, data",null,"podpis Wykonawcy"]

{"sheet":"Teletechnika","index":6,"n_rows":71,"n_cols":7,"rows_kept":71,"merged":[[0,0,0,6],[1,0,1,1],[1,2,1,6],[2,0,2,1],[2,2,2,6],[3,0,3,1],[3,2,3,6],[5,2,5,4],[65,0,65,5]]}
[{"$f":"DANE!B3","v":"Aktualizacja i optymalizacja dokumentacji projektowej zadania wraz z pełnieniem nadzoru autorskiego podczas realizacji Inwestycji tj.: ”Rozbudowa drogi wojewódzkiej nr 548 Stolno-Wąbrzeźno od km 0+005 do km 29+619 z wyłączeniem węzła autostradowego w m. Lisewo od km 14+144 do km 15+146” \nOdcinek nr 1 – od km 0+005 do km 14+144"}]
["Branża: ",null,"BRANŻA TELETECHNICZNA 22.07"]
["Obiekt:",null,"Teletechnika"]
["Kod CPV:",null,"45000000-9\nRoboty budowlane w zakresie wznoszenia kompletnych obiektów budowlanych lub ich części oraz roboty w zakresie inżynierii lądowej i wodnej "]
["Poz.","Podstawa wyceny","Wyszczególnienie elementu rozliczeniowego","Jedn.","Ilość jedn.","Cena jedn.","Wartość robót"]
["*","T.01.01.01.","Przebudowa sieci telekomunikacyjnych"]
[1,null,"Sieć miejscowa","*","*","*","*"]
[{"$f":"A7+1","v":2},null,"studnia kablowa SK-6 kompletna (kolumny wspornikowe, wsporniki dwukablowe-metalowe) z ramą z kołnierzem betonowym typ ciężki, pokrywą typu ciężkiego ryglowaną","szt.",{"v":1,"d":"1.00"}]
[3,null,"studnia kablowa SKR-2 kompletna (kolumny wspornikowe, wsporniki dwukablowe-metalowe) z ramą z kołnierzem betonowym typ ciężki, pokrywą typu ciężkiego ryglowaną","szt.",{"v":2,"d":"2.00"}]
[4,null,"studnia kablowa SK-2 kompletna (kolumny wspornikowe, wsporniki dwukablowe-metalowe) z ramą z kołnierzem betonowym typ ciężki, pokrywą typu ciężkiego ryglowaną","szt.",{"v":2,"d":"2.00"}]
[5,null,"studnia kablowa SKR-1 kompletna (kolumny wspornikowe, wsporniki dwukablowe-metalowe) z ramą z kołnierzem betonowym typ ciężki, pokrywą typu ciężkiego oraz pokrywą typu ciężkiego ryglowaną","szt.",{"v":3,"d":"3.00"}]
[6,null,"regulacja wysokościowa studni kablowych","szt.",{"v":15,"d":"15.00"}]
[7,null,"rura ochronna HDPE Ø110/25","m",{"v":90,"d":"90.00"}]
[8,null,"kanalizacja kablowa 2-otworowa rurami HDPE Ø110/6,3","m",{"v":91,"d":"91.00"}]
[9,null,"kanalizacja kablowa 4-otworowa rurami HDPE Ø110/6,3","m",{"v":66,"d":"66.00"}]
[10,null,"kanalizacja kablowa 2-otworowa rurami HDPE Ø125/7,1","m",{"v":39,"d":"39.00"}]
[11,null,"rura ochronna (1x)HDPE Ø160/9,1","m",{"v":141,"d":"141.00"}]
[12,null,"rura ochronna (2x)HDPE Ø160/9,1","m",{"v":7,"d":"7.00"}]
[13,null,"rura ochronna (1x)HDPE Ø40/3,7","m",{"v":10,"d":"10.00"}]
[14,null,"rura ochronna (2x)HDPE Ø40/3,7","m",{"v":960,"d":"960.00"}]
[15,null,"rura ochronna dzielona (1x)HDPE Ø160/141","m",{"v":1454,"d":"1,454.00"}]
[16,null,"rura ochronna dzielona (2x)HDPE Ø160/141","m",{"v":29,"d":"29.00"}]
[17,null,"rura ochronna dzielona (4x)HDPE Ø160/141","m",{"v":340,"d":"340.00"}]
[18,null,"Ława betonowa z betonu żwirowego klasy co najmniej B 20 o grubości minimum 15 cm i o szerokości min 100 cm","m",{"v":340,"d":"340.00"}]
[19,null,"słup pojedynczy, uszczudlony","szt.",{"v":22,"d":"22.00"}]
[20,null,"słup bliźniaczy, uszczudlony","szt.",{"v":6,"d":"6.00"}]
[21,null,"słup A-owy uszczudlony","szt.",{"v":1,"d":"1.00"}]
[22,null,"słupek rozdzielczy HDPE 30p","szt.",{"v":1,"d":"1.00"}]
[23,null,"przełożenie kabli linii napowietrznej - kabel o żyłach metalowych - wraz ze wszystkimi robotami towarzyszącymi i z kompletem osprzętu","m",{"v":2112,"d":"2,112.00"}]
[24,null,"przełożenie kabla linii napowietrznej - kabel światłowodowy - wraz ze wszystkimi robotami towarzyszącymi i kompletem osprzętu","m",{"v":1500,"d":"1,500.00"}]
[25,null,"skrzynka kablowa 30p","szt.",{"v":1,"d":"1.00"}]
[26,null,"skrzynka kablowa 10p","szt.",{"v":1,"d":"1.00"}]
[27,null,"przewód DGs/SID 1,5 mm² 300/500 V","m",{"v":2,"d":"2.00"}]
[28,null,"uziom szpilkowy 3 m","szt.",{"v":7,"d":"7.00"}]
[29,null,"przełożenie kabla ziemnego","m",{"v":42,"d":"42.00"}]
[30,null,"budowa kabla XzTKMXpw 10x2x0,5 ze złączami","m",{"v":90,"d":"90.00"}]
[31,null,"budowa kabla XzTKMXpw 5x4x0,6 ze złączami","m",{"v":610,"d":"610.00"}]
[32,null,"budowa kabla XzTKMXpw 10x4x0,5 ze złączami","m",{"v":100,"d":"100.00"}]
[33,null,"budowa kabla XzTKMXpw 15x4x0,5 ze złączami","m",{"v":428,"d":"428.00"}]
[34,null,"budowa kabla XzTKMXpw 35x4x0,8 ze złączami","m",{"v":190,"d":"190.00"}]
[35,null,"budowa kabla XzTKMXpw 50x4x0,5 ze złączami","m",{"v":213,"d":"213.00"}]
[36,null,"budowa kabla XzTKMXpw 50x4x0,8 ze złączami","m",{"v":277,"d":"277.00"}]
[37,null,"budowa kabla XzTKMXpw 100x4x0,5 ze złączami","m",{"v":1210,"d":"1,210.00"}]
[38,null,"budowa kabla XzTKMXpw 200x4x0,5 ze złączami","m",{"v":1110,"d":"1,110.00"}]
[39,null,"budowa kabla TKD 56x2x1,2 ze złączami","m",{"v":275,"d":"275.00"}]
[40,null,"budowa kabla napowietrznego XzTKMXpwn 5x4x0,5 ze złączami","m",{"v":82,"d":"82.00"}]
[41,null,"budowa kabla napowietrznego XzTKMXpwn 3x2x0,5 ze złączami","m",{"v":40,"d":"40.00"}]
[42,null,"rozbiórka studni kablowej","szt.",{"v":3,"d":"3.00"}]
[43,null,"rozbiórka słupa telekomunikacyjnego","szt.",{"v":28,"d":"28.00"}]
[44,null,"demontaż kabla kanałowego","m",{"v":350,"d":"350.00"}]
[45,null,"demontaż kabla napowietrznego","m",{"v":600,"d":"600.00"}]
[46,null,"pomiary w trakcie robót i pomontażowe na kablach o żyłach metalowych","kpl.",{"v":1,"d":"1.00"}]
[{"$f":"A50+1","v":45},null," pozyskanie warunków technicznych i uzgodnień przebudów sieci telekomunikacyjnych z właścicielami sieci na własny koszt (tych które wymagają nowych uzgodnień),","kpl.",{"v":1,"d":"1.00"}]
[{"$f":"A51+1","v":46},null,"pozyskania przez wykonawcę wywiadów branżowych pod kątem zweryfikowania czy nie powstały nowe sieci na własny koszt","kpl.",{"v":1,"d":"1.00"}]
[{"$f":"A52+1","v":47},null,"nadzory właścicielskie","kpl.",{"v":1,"d":"1.00"}]
[48,null,"budowa kabla światłowodowego Z-XOTKtsd 48J","m",{"v":1460,"d":"1,460.00"}]
[49,null,"kanalizacja wtórna 2xHDPE ∅32/2,9 ","m",{"v":94,"d":"94.00"}]
[50,null,"zasobnik ZK-1","szt.",{"v":6,"d":"6.00"}]
[51,null,"osłona złączowa kompletna FOSC-400-B4-S24-3","szt.",{"v":2,"d":"2.00"}]
[52,null,"osłona złączowa kompletna FOSC-400-B4-S24-4","szt.",{"v":1,"d":"1.00"}]
[53,null,"skrzynia zapasu STZK-60","szt.",{"v":1,"d":"1.00"}]
[54,null,"budowa mikrokanalizacji podziemnej HDPE 4x14/10mm wraz ze złączkami i uszczelniaczami","m",{"v":134,"d":"134.00"}]
[55,null,"pomiary w trakcie robót i pomontażowe na kablach światłowodwych","kpl.",{"v":1,"d":"1.00"}]
[56,null,"przełożenie kabla światłowodowego kanałowego","m",{"v":219,"d":"219.00"}]
[57,null,"demontaż kabla światłowodowego","m",{"v":1500,"d":"1,500.00"}]
["WARTOŚĆ KOSZTORYSU NETTO:",{"$nulls":5},{"$f":"SUM(G8:G65)","v":{"v":0,"d":"0.00 zł"}}]
[]
[]
[]
[null,"________________",null,"______________"]
[null,"miejscowość, data",null,"podpis Wykonawcy"]

{"sheet":"En","index":7,"n_rows":44,"n_cols":7,"rows_kept":44,"merged":[[0,0,0,6],[1,0,1,1],[1,2,1,6],[2,0,2,1],[2,2,2,6],[3,0,3,1],[3,2,3,6]]}
[{"$f":"DANE!B3","v":"Aktualizacja i optymalizacja dokumentacji projektowej zadania wraz z pełnieniem nadzoru autorskiego podczas realizacji Inwestycji tj.: ”Rozbudowa drogi wojewódzkiej nr 548 Stolno-Wąbrzeźno od km 0+005 do km 29+619 z wyłączeniem węzła autostradowego w m. Lisewo od km 14+144 do km 15+146” \nOdcinek nr 1 – od km 0+005 do km 14+144"}]
["Branża: ",null,"BRANŻA ELEKTROENERGETYCZNA 22.07"]
["Obiekt:",null,"Przebudowa sieci elektroenergetycznych"]
["Kod CPV:",null,"45000000-9\nRoboty budowlane w zakresie wznoszenia kompletnych obiektów budowlanych lub ich części oraz roboty w zakresie inżynierii lądowej i wodnej "]
["Poz.","Podstawa wyceny","Wyszczególnienie elementu rozliczeniowego","Jedn.","Ilość jedn.","Cena jedn.","Wartość robót"]
[null,"U.01.03.01a"," Przebudowa soieci energetycznych nN przy przebudowie dróg","x","x","x","x"]
["1.",null,"Zabudowa kompletnego stanowiska słupowego nN typu N3-12/10 (E) wraz z fundamentem oraz uzbrojeniem   zgodnie z dokumentacją projektową                                                                                                                                                                                                                                            ","kpl.",{"v":5,"d":"5.00"}]
["2.",null,"Zabudowa kompletnego stanowiska słupowego nN typu O-12/12 (E) wraz z fundamentem oraz uzbrojeniem    zgodnie z dokumentacją projektową                                                                                                                                                                                                                                           ","kpl.",{"v":2,"d":"2.00"}]
["3.",null,"Zabudowa kompletnego stanowiska słupowego nN typu O-12/15 (E) wraz z fundamentem oraz uzbrojeniem     zgodnie z dokumentacją projektową                                                                                                                                                                                                                                          ","kpl.",{"v":1,"d":"1.00"}]
["4.",null,"Zabudowa kompletnego stanowiska słupowego nN typu P-12/4,3 (E) wraz z fundamentem oraz uzbrojeniem     zgodnie z dokumentacją projektową                                                                                                                                                                                                                                          ","kpl.",{"v":1,"d":"1.00"}]
["5.",null,"Zabudowa kompletnego stanowiska słupowego nN typu K-12/15 (E) wraz z fundamentem oraz uzbrojeniem    zgodnie z dokumentacją projektową                                                                                                                                                                                                                                           ","kpl.",{"v":2,"d":"2.00"}]
["6.",null,"Zabudowa kompletnego stanowiska słupowego nN typu RPK-12/10 (E) wraz z fundamentem oraz uzbrojeniem    zgodnie z dokumentacją projektową                                                                                                                                                                                                                                           ","kpl.",{"v":1,"d":"1.00"}]
["7.",null,"Zabudowa kompletnego stanowiska słupowego nN typu RNK-12/10 (E) wraz z fundamentem oraz uzbrojeniem  zgodnie z dokumentacją projektową                                                                                                                                                                                                                                             ","kpl.",{"v":1,"d":"1.00"}]
["8.",null,"Zabudowa przewodu typu AsXSn 4x50  zgodnie z dokumentacją projektową                                                                                                                                                                                                                                               ","mb",{"v":543,"d":"543.00"}]
["9.",null,"Zabudowa przewodu typu AsXSn 4x25   zgodnie z dokumentacją projektową                                                                                                                                                                                                                                              ","mb",{"v":531,"d":"531.00"}]
["10.",null,"Zabudowa przewodu typu AsXSn 2x25  zgodnie z dokumentacją projektową                                                                                                                                                                                                                                               ","mb",{"v":305,"d":"305.00"}]
["11.",null,"Istniejące przewody 4xAL 50+25 do przewieszenia na nowe słupy   zgodnie z dokumentacją projektową                                                                                                                                                                                                                                                ","mb",{"v":156,"d":"156.00"}]
["12.",null,"Istniejące przewody AsXSn 4x70 do przewieszenia na nowe słupy   zgodnie z dokumentacją projektową                                                                                                                                                                                                                                             ","mb",{"v":50,"d":"50.00"}]
["13.",null,"Istniejące przewody AsXSn 4x25 do przewieszenia na nowe słupy   zgodnie z dokumentacją projektową                                                                                                                                                                                                                                             ","mb",{"v":90,"d":"90.00"}]
["14.",null,"Zabudowa kabla nN YAKXS 4x120  zgodnie z dokumentacją projektową","mb",{"v":80,"d":"80.00"}]
["15.",null,"Zabudowa kabla nN YAKXS 4x70  zgodnie z dokumentacją projektową","mb",{"v":65,"d":"65.00"}]
["16.",null,"Zabudowa kabla nN YAKXS 4x35  zgodnie z dokumentacją projektową","mb",{"v":70,"d":"70.00"}]
["17.",null,"Zabudowa mufy kablowej nN POLJ-01/25-70  zgodnie z dokumentacją projektową","kpl.",{"v":4,"d":"4.00"}]
["18.",null,"Zabudowa mufy kablowej nN POLJ-01/70-120  zgodnie z dokumentacją projektową","kpl.",{"v":3,"d":"3.00"}]
["19.",null,"Zabudowa ograniczników przepięć typu ASA-0,66/5kA ","kpl.",{"v":30,"d":"30.00"}]
["20.",null,"Zabudowa zejścia kablem ze słupa (rura UV fi 75, uchwyty, opaski, zaciski, termokurcze, itp.) zgodnie z dokumentacją proejktową","kpl.",{"v":7,"d":"7.00"}]
["21.",null,"Wykonanie przewiertu sterowanego rurą SRS-G 110","mb",{"v":58,"d":"58.00"}]
["22.",null,"Zabudowa rury ochronnej SRS 110 zgodnie z dokumentacją projektową ","mb",{"v":40,"d":"40.00"}]
["23.",null,"Wykonanie zabezpieczenia istniejących kabli nN rurą A110PS zgodnie z dokumentacja projektową","mb",{"v":150,"d":"150.00"}]
["24.",null,"Wykonanie zabezpieczenia istniejących kabli SN rurą A160PS zgodnie z dokumentacja projektową","mb",{"v":45,"d":"45.00"}]
["25.",null,"Zabudowa uziomu pogrążalnego stalowego ocynkowanego fi 20, l=2x15m (R<10Ω)","kpl.",{"v":8,"d":"8.00"}]
["26.",null,"Zabudowa uziomu pogrążalnego stalowego ocynkowanego fi 20, l=15m (R<30Ω)","kpl.",{"v":5,"d":"5.00"}]
["27.",null,"Regulacja studni kablowej","kpl.",{"v":1,"d":"1.00"}]
["28.",null,"Demontaż słupów linii napowietrznej","kpl.",{"v":12,"d":"12.00"}]
["29.",null,"Demontaż linii napowietrznej nN","mb",{"v":800,"d":"800.00"}]
["30.",null,"Demontaż opraw oświetlenia ulicznego","kpl.",{"v":40,"d":"40.00"}]
["31.",null,"Demontaż linii kablowej nN","mb",{"v":250,"d":"250.00"}]
[]
[]
[]
[]
[]
[null,"________________",null,"______________"]
[null,"miejscowość, data",null,"podpis Wykonawcy"]

{"sheet":"Os","index":8,"n_rows":153,"n_cols":7,"rows_kept":153,"merged":[[0,0,0,6],[1,0,1,1],[1,2,1,6],[2,0,2,1],[2,2,2,6],[3,0,3,1],[3,2,3,6],[6,0,6,5],[30,1,30,5],[31,0,31,5],[37,1,37,5],[38,0,38,5],[65,1,65,5],[66,0,66,5],[93,1,93,5],[94,0,94,5],[114,1,114,5],[115,0,115,5]]}
[{"$f":"DANE!B3","v":"Aktualizacja i optymalizacja dokumentacji projektowej zadania wraz z pełnieniem nadzoru autorskiego podczas realizacji Inwestycji tj.: ”Rozbudowa drogi wojewódzkiej nr 548 Stolno-Wąbrzeźno od km 0+005 do km 29+619 z wyłączeniem węzła autostradowego w m. Lisewo od km 14+144 do km 15+146” \nOdcinek nr 1 – od km 0+005 do km 14+144"}]
["Branża: ",null,"BRANŻA ELEKTROENERGETYCZNA 22.07"]
["Obiekt:",null,"Budowa Oświetlenia Drogowego"]
["Kod CPV:",null,"45000000-9\nRoboty budowlane w zakresie wznoszenia kompletnych obiektów budowlanych lub ich części oraz roboty w zakresie inżynierii lądowej i wodnej "]
["Poz.","Podstawa wyceny","Wyszczególnienie elementu rozliczeniowego","Jedn.","Ilość jedn.","Cena jedn.","Wartość robót"]
[null,"U.07.07.01","Oświetlenie uliczne","x","x","x","x"]
["Budowa oświetlenia drogowego w m. Stolno od km 0+000 do km 0+385"]
["1.",null,"- zabudowa szafy oświetlenia ulicznego SOU-3 zgodnie z dokumentacją projektową","kpl",{"v":1,"d":"1.00"}]
["2.",null,"- zabudowa słupów aluminiowych, anodowanych na kolor naturalnego aluminium o wysokości do oprawy h=10m i wysiegniku 1m o kącie 5 stopni wraz z fundamentem prefabrykowanym zgodnie z dokumentacją projektową","kpl",{"v":13,"d":"13.00"}]
["3.",null,"- zabudowa słupów aluminiowych, anodowanych na kolor naturalnego aluminium o wysokości do oprawy h=5,5m i wysiegniku 2,5m o kącie 5 stopni wraz z fundamentem prefabrykowanym zgodnie z dokumentacją projektową","kpl",{"v":1,"d":"1.00"}]
["4.",null,"- zabudowa słupów aluminiowych, anodowanych na kolor naturalnego aluminium o wysokości do oprawy h=5,5m i wysiegniku 1,5m o kącie 5 stopni wraz z fundamentem prefabrykowanym zgodnie z dokumentacją projektową","kpl",{"v":1,"d":"1.00"}]
["5.",null,"- zabudowa opraw oświetleniowych LED 79W, 4000K z optyką T2 zgodnie z dokumentacją projektową","kpl",{"v":10,"d":"10.00"}]
["6.",null,"- zabudowa opraw oświetleniowych LED 67W, 4000K z optyką T2 zgodnie z dokumentacją projektową","kpl",{"v":2,"d":"2.00"}]
["7.",null,"- zabudowa opraw oświetleniowych LED 55W, 4000K z optyką T2 zgodnie z dokumentacją projektową","kpl",{"v":1,"d":"1.00"}]
["8.",null,"- zabudowa opraw oświetleniowych LED 86W, 6000K P asymetrycznych zgodnie z dokumentacją projektową","kpl",{"v":2,"d":"2.00"}]
["9.",null,"- zabudowa kabla YAKXS 4x35 zgodnie z dokumentacja projektową","mb",{"v":499,"d":"499.00"}]
["10.",null,"- zabudowa bednarki FeZn30x4 zgodnie z dokumentacja projektową","mb",{"v":499,"d":"499.00"}]
["11.",null,"- wykonanie przewiertów/przecisków rurą np. typu  SRS-G 110 zgodnie z dokumentacja projektową ","mb",{"v":58,"d":"58.00"}]
["12.",null,"- zabudowa rur ochronncyh np. typu  SRS 110 zgodnie z dokumentacja projektową ","mb",{"v":22,"d":"22.00"}]
["13.",null,"- zabudowa rur ochronncyh np. typu DVK 110 zgodnie z dokumentacja projektową ","mb",{"v":47,"d":"47.00"}]
["14.",null,"- zabudowa złącza słupowego/tabliczki słupowej zgodnie z dokumentacja projektową ","kpl.",{"v":15,"d":"15.00"}]
["15.",null,"- zabudowa uziomu stalowego ocynkowanego pogrążalnego fi 20, l=2x12m (R<10Ω)  zgodnie z dokumentacja projektową ","kpl.",{"v":1,"d":"1.00"}]
["16.",null,"- zabudowa uziomu stalowego ocynkowanego pogrążalnego fi 20, l=12m (R<30Ω)  zgodnie z dokumentacja projektową ","kpl.",{"v":2,"d":"2.00"}]
["17.",null,"- zabudowa przewodu w słupie typu YDYżo 3x2,5  zgodnie z dokumentacja projektową ","mb",{"v":170,"d":"170.00"}]
["18.",null,"- wykonanie pomiarów elektrycznych powykonawczych ","kpl.",{"v":1,"d":"1.00"}]
["19.",null,"- wykonanie pomiarówfotometrycznych powykonawczych ","kpl.",{"v":1,"d":"1.00"}]
["20.",null,"- obsługa geodezyjna ","kpl.",{"v":1,"d":"1.00"}]
["21.",null,"- demontż istniejącego punktu oświetleniowego kompletnie wyposażonego typu P/ŻN-10 wraz z oprawą ","kpl",{"v":1,"d":"1.00"}]
["22.",null,"- demontż istniejącego punktu oświetleniowego kompletnie wyposażonego typu PB/ŻN-10 wraz z oprawą ","kpl",{"v":1,"d":"1.00"}]
["23.",null,"- demontaż przewodu napowietrznego AsXSn 2x25","mb",{"v":86,"d":"86.00"}]
[null,"RAZEM ",{"$nulls":4},{"$f":"SUM(G8:G27)","v":{"v":0,"d":"0.00"}}]
["Przebudowa oświetlenia drogowego w m. Stolno w km 1+065"]
["1.",null,"- demontż istniejącego punktu oświetleniowego kompletnie wyposażonego typu OŻ-10 wraz z oprawą","kpl",{"v":1,"d":"1.00"}]
["2.",null,"- zabudowa punktu oświetleniowego z demontażu kompletnie wyposażonego typu OŻ-10 wraz z oprawą","kpl",{"v":1,"d":"1.00"}]
["3.",null,"- demontaż linii kablowej YAKY 4x35","mb",{"v":3,"d":"3.00"}]
["4.",null,"- wykonanie pomiarów elektrycznych powykonawczych ","kpl.",{"v":1,"d":"1.00"}]
["5.",null,"- obsługa geodezyjna ","kpl.",{"v":1,"d":"1.00"}]
[null,"RAZEM ",{"$nulls":4},{"$f":"SUM(G33:G37)","v":{"v":0,"d":"0.00"}}]
["Budowa oświetlenia drogowego w m. Cepno od km 1+910 do km 2+975"]
["1.",null,"- zabudowa szafy oświetlenia ulicznego SOU-3 zgodnie z dokumentacją projektową","kpl",{"v":1,"d":"1.00"}]
["2.",null,"- zabudowazłacza kablowo - pomiarowego z demontażu zgodnie z dokumentacją projektową","kpl",{"v":1,"d":"1.00"}]
["3.",null,"- zabudowa słupów aluminiowych, anodowanych na kolor naturalnego aluminium o wysokości do oprawy h=10m i wysiegniku 2,5m o kącie 5 stopni wraz z fundamentem prefabrykowanym zgodnie z dokumentacją projektową","kpl",{"v":2,"d":"2.00"}]
["4.",null,"- zabudowa słupów aluminiowych, anodowanych na kolor naturalnego aluminium o wysokości do oprawy h=10m i wysiegniku 1m o kącie 5 stopni wraz z fundamentem prefabrykowanym zgodnie z dokumentacją projektową","kpl",{"v":30,"d":"30.00"}]
["5.",null,"- zabudowa słupów aluminiowych, anodowanych na kolor naturalnego aluminium o wysokości do oprawy h=5,5m i wysiegniku 2,5m o kącie 5 stopni wraz z fundamentem prefabrykowanym zgodnie z dokumentacją projektową","kpl",{"v":3,"d":"3.00"}]
["6.",null,"- zabudowa słupów aluminiowych, anodowanych na kolor naturalnego aluminium o wysokości do oprawy h=5,5m i wysiegniku 1,5m o kącie 5 stopni wraz z fundamentem prefabrykowanym zgodnie z dokumentacją projektową","kpl",{"v":1,"d":"1.00"}]
["7.",null,"- zabudowa opraw oświetleniowych LED 105W, 4000K z optyką DW  zgodnie z dokumentacją projektową","kpl",{"v":4,"d":"4.00"}]
["8.",null,"- zabudowa opraw oświetleniowych LED 79W, 4000K z optyką T2 zgodnie z dokumentacją projektową","kpl",{"v":23,"d":"23.00"}]
["9.",null,"- zabudowa opraw oświetleniowych LED 67W, 4000K z optyką T2 zgodnie z dokumentacją projektową","kpl",{"v":3,"d":"3.00"}]
["10.",null,"- zabudowa opraw oświetleniowych LED 55W, 4000K z optyką T2 zgodnie z dokumentacją projektową","kpl",{"v":2,"d":"2.00"}]
["11.",null,"- zabudowa opraw oświetleniowych LED 86W, 6000K P asymetrycznych zgodnie z dokumentacją projektową","kpl",{"v":4,"d":"4.00"}]
["12.",null,"- zabudowa kabla YAKXS 4x35 zgodnie z dokumentacja projektową","mb",{"v":1373,"d":"1373.00"}]
["13.",null,"- zabudowa bednarki FeZn30x4 zgodnie z dokumentacja projektową","mb",{"v":1373,"d":"1373.00"}]
["14.",null,"- wykonanie przewiertów/przecisków rurą np. typu  SRS-G 110 zgodnie z dokumentacja projektową ","mb",{"v":94,"d":"94.00"}]
["15.",null,"- zabudowa rur ochronncyh np. typu  SRS 110 zgodnie z dokumentacja projektową ","mb",{"v":72,"d":"72.00"}]
["16.",null,"- zabudowa rur ochronncyh np. typu DVK 110 zgodnie z dokumentacja projektową ","mb",{"v":136,"d":"136.00"}]
["17.",null,"- zabudowa złącza słupowego/tabliczki słupowej zgodnie z dokumentacja projektową ","kpl.",{"v":36,"d":"36.00"}]
["18.",null,"- zabudowa uziomu stalowego ocynkowanego pogrążalnego fi 20, l=2x12m (R<10Ω)  zgodnie z dokumentacja projektową ","kpl.",{"v":1,"d":"1.00"}]
["19.",null,"- zabudowa uziomu stalowego ocynkowanego pogrążalnego fi 20, l=12m (R<30Ω)  zgodnie z dokumentacja projektową ","kpl.",{"v":3,"d":"3.00"}]
["20.",null,"- zabudowa przewodu w słupie typu YDYżo 3x2,5  zgodnie z dokumentacja projektową ","mb",{"v":412,"d":"412.00"}]
["21.",null,"- wykonanie pomiarów elektrycznych powykonawczych ","kpl.",{"v":1,"d":"1.00"}]
["22.",null,"- wykonanie pomiarówfotometrycznych powykonawczych ","kpl.",{"v":1,"d":"1.00"}]
["23.",null,"- obsługa geodezyjna ","kpl.",{"v":1,"d":"1.00"}]
["24.",null,"- demontż istniejącego złącza kablowo-pomiarowego","kpl",{"v":1,"d":"1.00"}]
["25.",null,"- demontż istniejącego punktu oświetleniowego kompletnie wyposażonego typu WZ-10 wraz z oprawą","kpl",{"v":4,"d":"4.00"}]
["26.",null,"- demontaż linii kablowej YAKY 4x35","mb",{"v":135,"d":"135.00"}]
[null,"RAZEM ",{"$nulls":4},{"$f":"SUM(G40:G65)","v":{"v":0,"d":"0.00"}}]
["Budowa oświetlenia drogowego w m. Kamlarki i m. Krusin od km 6+835 do km 8+330"]
["1.",null,"- zabudowa szafy oświetlenia ulicznego SOU-3 zgodnie z dokumentacją projektową","kpl",{"v":1,"d":"1.00"}]
["2.",null,"- zabudowa słupów aluminiowych, anodowanych na kolor naturalnego aluminium o wysokości do oprawy h=10m i wysiegniku 2,5m o kącie 5 stopni wraz z fundamentem prefabrykowanym zgodnie z dokumentacją projektową","kpl",{"v":35,"d":"35.00"}]
["3.",null,"- zabudowa słupów aluminiowych, anodowanych na kolor naturalnego aluminium o wysokości do oprawy h=10m i wysiegniku 1m o kącie 5 stopni wraz z fundamentem prefabrykowanym zgodnie z dokumentacją projektową","kpl",{"v":20,"d":"20.00"}]
["4.",null,"- zabudowa słupów aluminiowych, anodowanych na kolor naturalnego aluminium o wysokości do oprawy h=5,5m i wysiegniku 2,5m o kącie 5 stopni wraz z fundamentem prefabrykowanym zgodnie z dokumentacją projektową","kpl",{"v":6,"d":"6.00"}]
["5.",null,"- zabudowa słupów aluminiowych, anodowanych na kolor naturalnego aluminium o wysokości do oprawy h=5,5m i wysiegniku 1,5m o kącie 5 stopni wraz z fundamentem prefabrykowanym zgodnie z dokumentacją projektową","kpl",{"v":5,"d":"5.00"}]
["6.",null,"- zabudowa słupów aluminiowych, anodowanych na kolor naturalnego aluminium o wysokości do oprawy h=5,5m i wysiegniku 1m o kącie 5 stopni wraz z fundamentem prefabrykowanym zgodnie z dokumentacją projektową","kpl",{"v":1,"d":"1.00"}]
["7.",null,"- zabudowa opraw oświetleniowych LED 105W, 4000K z optyką DW  zgodnie z dokumentacją projektową","kpl",{"v":16,"d":"16.00"}]
["8.",null,"- zabudowa opraw oświetleniowych LED 79W, 4000K z optyką T2 zgodnie z dokumentacją projektową","kpl",{"v":28,"d":"28.00"}]
["9.",null,"- zabudowa opraw oświetleniowych LED 67W, 4000K z optyką T2 zgodnie z dokumentacją projektową","kpl",{"v":6,"d":"6.00"}]
["10.",null,"- zabudowa opraw oświetleniowych LED 55W, 4000K z optyką T2 zgodnie z dokumentacją projektową","kpl",{"v":5,"d":"5.00"}]
["11.",null,"- zabudowa opraw oświetleniowych LED 86W, 6000K P asymetrycznych zgodnie z dokumentacją projektową","kpl",{"v":12,"d":"12.00"}]
["12.",null,"- zabudowa kabla YAKXS 4x35 zgodnie z dokumentacja projektową","mb",{"v":2331,"d":"2331.00"}]
["13.",null,"- zabudowa bednarki FeZn30x4 zgodnie z dokumentacja projektową","mb",{"v":2331,"d":"2331.00"}]
["14.",null,"- wykonanie przewiertów/przecisków rurą np. typu  SRS-G 110 zgodnie z dokumentacja projektową ","mb",{"v":126,"d":"126.00"}]
["15.",null,"- zabudowa rur ochronncyh np. typu  SRS 110 zgodnie z dokumentacja projektową ","mb",{"v":162,"d":"162.00"}]
["16.",null,"- zabudowa rur ochronncyh np. typu DVK 110 zgodnie z dokumentacja projektową ","mb",{"v":191,"d":"191.00"}]
["17.",null,"- zabudowa złącza słupowego/tabliczki słupowej zgodnie z dokumentacja projektową ","kpl.",{"v":67,"d":"67.00"}]
["18.",null,"- zabudowa uziomu stalowego ocynkowanego pogrążalnego fi 20, l=2x12m (R<10Ω)  zgodnie z dokumentacja projektową ","kpl.",{"v":1,"d":"1.00"}]
["19.",null,"- zabudowa uziomu stalowego ocynkowanego pogrążalnego fi 20, l=12m (R<30Ω)  zgodnie z dokumentacja projektową ","kpl.",{"v":8,"d":"8.00"}]
["20.",null,"- zabudowa przewodu w słupie typu YDYżo 3x2,5  zgodnie z dokumentacja projektową ","mb",{"v":744,"d":"744.00"}]
["21.",null,"- wykonanie pomiarów elektrycznych powykonawczych ","kpl.",{"v":1,"d":"1.00"}]
["22.",null,"- wykonanie pomiarów fotometrycznych powykonawczych ","kpl.",{"v":1,"d":"1.00"}]
["23.",null,"- obsługa geodezyjna ","kpl.",{"v":1,"d":"1.00"}]
["24.",null,"- demontż istniejącej szafki oświetleniowej ze słupa EOC","kpl",{"v":1,"d":"1.00"}]
["25.",null,"- demontż istniejącego punktu oświetleniowego kompletnie wyposażonego typu EOC-10,5/2,5 wraz z oprawą ","kpl",{"v":4,"d":"4.00"}]
["26.",null,"- demontaż przewodu napowietrznego AsXSn 2x25","mb",{"v":128,"d":"128.00"}]
[null,"RAZEM ",{"$nulls":4},{"$f":"SUM(G68:G93)","v":{"v":0,"d":"0.00"}}]
["Budowa oświetlenia drogowego w m. Lisewo od km 10+325 do km 10+895"]
["1.",null,"- zabudowa szafy oświetlenia ulicznego SOU-3 zgodnie z dokumentacją projektową","kpl",{"v":1,"d":"1.00"}]
["2.",null,"- zabudowa słupów aluminiowych, anodowanych na kolor naturalnego aluminium o wysokości do oprawy h=10m i wysiegniku 2,5m o kącie 5 stopni wraz z fundamentem prefabrykowanym zgodnie z dokumentacją projektową","kpl",{"v":4,"d":"4.00"}]
["3.",null,"- zabudowa słupów aluminiowych, anodowanych na kolor naturalnego aluminium o wysokości do oprawy h=10m i wysiegniku 1m o kącie 5 stopni wraz z fundamentem prefabrykowanym zgodnie z dokumentacją projektową","kpl",{"v":23,"d":"23.00"}]
["4.",null,"- zabudowa opraw oświetleniowych LED 105W, 4000K z optyką DW  zgodnie z dokumentacją projektową","kpl",{"v":13,"d":"13.00"}]
["5.",null,"- zabudowa opraw oświetleniowych LED 79W, 4000K z optyką T2 zgodnie z dokumentacją projektową","kpl",{"v":6,"d":"6.00"}]
["6.",null,"- zabudowa opraw oświetleniowych LED 67W, 4000K z optyką T2 zgodnie z dokumentacją projektową","kpl",{"v":4,"d":"4.00"}]
["7.",null,"- zabudowa opraw oświetleniowych LED 55W, 4000K z optyką T2 zgodnie z dokumentacją projektową","kpl",{"v":4,"d":"4.00"}]
["8.",null,"- zabudowa kabla YAKXS 4x35 zgodnie z dokumentacja projektową","mb",{"v":1077,"d":"1077.00"}]
["9.",null,"- zabudowa bednarki FeZn30x4 zgodnie z dokumentacja projektową","mb",{"v":1077,"d":"1077.00"}]
["10.",null,"- wykonanie przewiertów/przecisków rurą np. typu  SRS-G 110 zgodnie z dokumentacja projektową ","mb",{"v":138,"d":"138.00"}]
["11.",null,"- zabudowa rur ochronncyh np. typu  SRS 110 zgodnie z dokumentacja projektową ","mb",{"v":64,"d":"64.00"}]
["12.",null,"- zabudowa rur ochronncyh np. typu DVK 110 zgodnie z dokumentacja projektową ","mb",{"v":90,"d":"90.00"}]
["13.",null,"- zabudowa złącza słupowego/tabliczki słupowej zgodnie z dokumentacja projektową ","kpl.",{"v":27,"d":"27.00"}]
["14.",null,"- zabudowa uziomu stalowego ocynkowanego pogrążalnego fi 20, l=2x12m (R<10Ω)  zgodnie z dokumentacja projektową ","kpl.",{"v":1,"d":"1.00"}]
["15.",null,"- zabudowa uziomu stalowego ocynkowanego pogrążalnego fi 20, l=12m (R<30Ω)  zgodnie z dokumentacja projektową ","kpl.",{"v":4,"d":"4.00"}]
["16.",null,"- zabudowa przewodu w słupie typu YDYżo 3x2,5  zgodnie z dokumentacja projektową ","mb",{"v":324,"d":"324.00"}]
["17.",null,"- wykonanie pomiarów elektrycznych powykonawczych ","kpl.",{"v":1,"d":"1.00"}]
["18.",null,"- wykonanie pomiarówfotometrycznych powykonawczych ","kpl.",{"v":1,"d":"1.00"}]
["19.",null,"- obsługa geodezyjna ","kpl.",{"v":1,"d":"1.00"}]
[null,"RAZEM ",{"$nulls":4},{"$f":"SUM(G96:G114)","v":{"v":0,"d":"0.00"}}]
["Budowa oświetlenia drogowego w m. Lisewo od km 11+910 do km 14+130"]
["1.",null,"- zabudowa szafy oświetlenia ulicznego SOU-3 zgodnie z dokumentacją projektową","kpl",{"v":1,"d":"1.00"}]
["4.",null,"- zabudowa słupów aluminiowych, anodowanych na kolor naturalnego aluminium o wysokości do oprawy h=10m i wysiegniku 3,5m o kącie 5 stopni wraz z fundamentem prefabrykowanym zgodnie z dokumentacją projektową","kpl",{"v":2,"d":"2.00"}]
["5.",null,"- zabudowa słupów aluminiowych, anodowanych na kolor naturalnego aluminium o wysokości do oprawy h=10m i wysiegniku 2,5m o kącie 5 stopni wraz z fundamentem prefabrykowanym zgodnie z dokumentacją projektową","kpl",{"v":6,"d":"6.00"}]
["6.",null,"- zabudowa słupów aluminiowych, anodowanych na kolor naturalnego aluminium o wysokości do oprawy h=10m i wysiegniku 1m o kącie 5 stopni wraz z fundamentem prefabrykowanym zgodnie z dokumentacją projektową","kpl",{"v":66,"d":"66.00"}]
["7.",null,"- zabudowa słupów aluminiowych, anodowanych na kolor naturalnego aluminium o wysokości do oprawy h=5,5m i wysiegniku 2,5m o kącie 5 stopni wraz z fundamentem prefabrykowanym zgodnie z dokumentacją projektową","kpl",{"v":5,"d":"5.00"}]
["8.",null,"- zabudowa słupów aluminiowych, anodowanych na kolor naturalnego aluminium o wysokości do oprawy h=5,5m i wysiegniku 1,5m o kącie 5 stopni wraz z fundamentem prefabrykowanym zgodnie z dokumentacją projektową","kpl",{"v":7,"d":"7.00"}]
["9.",null,"- zabudowa słupów aluminiowych, anodowanych na kolor naturalnego aluminium o wysokości do oprawy h=5,5m i wysiegniku 0,5m o kącie 5 stopni wraz z fundamentem prefabrykowanym zgodnie z dokumentacją projektową","kpl",{"v":6,"d":"6.00"}]
["10.",null,"- zabudowa opraw oświetleniowych LED 154W, 4000K z optyką DW  zgodnie z dokumentacją projektową","kpl",{"v":2,"d":"2.00"}]
["11.",null,"- zabudowa opraw oświetleniowych LED 105W, 4000K z optyką DW  zgodnie z dokumentacją projektową","kpl",{"v":10,"d":"10.00"}]
["12.",null,"- zabudowa opraw oświetleniowych LED 79W, 4000K z optyką T2 zgodnie z dokumentacją projektową","kpl",{"v":54,"d":"54.00"}]
["13.",null,"- zabudowa opraw oświetleniowych LED 67W, 4000K z optyką T2 zgodnie z dokumentacją projektową","kpl",{"v":4,"d":"4.00"}]
["14.",null,"- zabudowa opraw oświetleniowych LED 55W, 4000K z optyką T2 zgodnie z dokumentacją projektową","kpl",{"v":4,"d":"4.00"}]
["15.",null,"- zabudowa opraw oświetleniowych LED 39W, 4000K z optyką T2  zgodnie z dokumentacją projektową","kpl",{"v":2,"d":"2.00"}]
["16.",null,"- zabudowa opraw oświetleniowych LED 86W, 6000K P asymetrycznych zgodnie z dokumentacją projektową","kpl",{"v":16,"d":"16.00"}]
["17.",null,"- zabudowa kabla YAKXS 4x35 zgodnie z dokumentacja projektową","mb",{"v":3230,"d":"3230.00"}]
["18.",null,"- zabudowa bednarki FeZn30x4 zgodnie z dokumentacja projektową","mb",{"v":3230,"d":"3230.00"}]
["19.",null,"- wykonanie przewiertów/przecisków rurą np. typu  SRS-G 110 zgodnie z dokumentacja projektową ","mb",{"v":286,"d":"286.00"}]
["20.",null,"- zabudowa rur ochronncyh np. typu  SRS 110 zgodnie z dokumentacja projektową ","mb",{"v":132,"d":"132.00"}]
["21.",null,"- zabudowa rur ochronncyh np. typu DVK 110 zgodnie z dokumentacja projektową ","mb",{"v":624,"d":"624.00"}]
["22.",null,"- zabudowa złącza słupowego/tabliczki słupowej zgodnie z dokumentacja projektową ","kpl.",{"v":92,"d":"92.00"}]
["23.",null,"- zabudowa uziomu stalowego ocynkowanego pogrążalnego fi 20, l=2x12m (R<10Ω)  zgodnie z dokumentacja projektową ","kpl.",{"v":1,"d":"1.00"}]
["24.",null,"- zabudowa uziomu stalowego ocynkowanego pogrążalnego fi 20, l=12m (R<30Ω)  zgodnie z dokumentacja projektową ","kpl.",{"v":12,"d":"12.00"}]
["25.",null,"- zabudowa przewodu w słupie typu YDYżo 3x2,5  zgodnie z dokumentacja projektową ","mb",{"v":1200,"d":"1200.00"}]
["26.",null,"- wykonanie pomiarów elektrycznych powykonawczych ","kpl.",{"v":1,"d":"1.00"}]
["27.",null,"- wykonanie pomiarów fotometrycznych powykonawczych ","kpl.",{"v":1,"d":"1.00"}]
["28.",null,"- obsługa geodezyjna ","kpl.",{"v":1,"d":"1.00"}]
["29.",null,"- demontż istniejącego punktu oświetleniowego parkowego + 3 x oprawa typu kula ","kpl",{"v":2,"d":"2.00"}]
["30.",null,"- demontż istniejącego punktu oświetleniowego kompletnie wyposażonego typu EOC-10,5/2,5 wraz z oprawą ","kpl",{"v":9,"d":"9.00"}]
["31.",null,"- demontaż linii kablowej YAKXS 4x35","mb",{"v":345,"d":"345.00"}]
[]
[{"$nulls":6},{"$f":"SUM(G31,G38,G66,G94,G115,G146)","v":{"v":0,"d":"0.00"}}]
[]
[]
[]
[]
[null,"________________",null,"______________"]
[null,"miejscowość, data",null,"podpis Wykonawcy"]

{"sheet":"Zasilanie","index":9,"n_rows":53,"n_cols":7,"rows_kept":53,"merged":[[0,0,0,6],[1,0,1,1],[1,2,1,6],[2,0,2,1],[2,2,2,6],[3,0,3,1],[3,2,3,6],[6,0,6,6],[7,0,8,0],[7,1,8,1],[7,2,8,2],[7,3,7,4],[7,5,8,5],[7,6,8,6],[10,0,10,5],[18,1,18,5],[19,0,19,5],[26,1,26,5],[27,0,27,5],[36,1,36,5],[37,0,37,5],[46,1,46,5]]}
[{"$f":"DANE!B3","v":"Aktualizacja i optymalizacja dokumentacji projektowej zadania wraz z pełnieniem nadzoru autorskiego podczas realizacji Inwestycji tj.: ”Rozbudowa drogi wojewódzkiej nr 548 Stolno-Wąbrzeźno od km 0+005 do km 29+619 z wyłączeniem węzła autostradowego w m. Lisewo od km 14+144 do km 15+146” \nOdcinek nr 1 – od km 0+005 do km 14+144"}]
["Branża: ",null,"BRANŻA ELEKTROENERGETYCZNA 22.07"]
["Obiekt:",null,"Zasilanie obiektów"]
["Kod CPV:",null,"45000000-9\nRoboty budowlane w zakresie wznoszenia kompletnych obiektów budowlanych lub ich części oraz roboty w zakresie inżynierii lądowej i wodnej "]
["Poz.","Podstawa wyceny","Wyszczególnienie elementu rozliczeniowego","Jedn.","Ilość jedn.","Cena jedn.","Wartość robót"]
[null,"U.07.07.01","Zasilanie obiektów","x","x","x","x"]
["ZASILANIE URZĄDZEŃ"]
["L.p.","Numer \nSTWiORB","Wyszczególnienie elementu rozliczeniowego","Jednostka",null,"Cena jednostkowa","Wartość robót"]
[{"$nulls":3},"Nazwa","Ilość"]
[null,"U.01.03.02","Przebudowa i budowa kablowych linii energetycznych","x","x","x","x"]
["Budowa zasilania stacji meteorologicznej w m. Stolno w km 0+050 "]
["1.",null,"- zabudowa kompletnej stacji meteorologicznej zgodnie ze specyfikacją Zamawiajacego","kpl",1]
["2.",null,"- zabudowa kabla YKXS 3x10 zgodnie z dokumentacja projektową","mb",{"v":50,"d":"50.00"}]
["3.",null,"- wykonanie przewiertów/przecisków rurą np. typu  SRS-G 110 zgodnie z dokumentacja projektową ","mb",{"v":30,"d":"30.00"}]
["4.",null,"- zabudowa rur ochronncyh np. typu DVK 110 zgodnie z dokumentacja projektową ","mb",{"v":10,"d":"10.00"}]
["5.",null,"- zabudowa uziomu stalowego ocynkowanego pogrążalnego fi 20, l=2x12m (R<10Ω)  zgodnie z dokumentacja projektową ","kpl.",{"v":1,"d":"1.00"}]
["6.",null,"- wykonanie pomiarów elektrycznych powykonawczych ","kpl.",{"v":1,"d":"1.00"}]
["7.",null,"- obsługa geodezyjna ","kpl.",{"v":1,"d":"1.00"}]
[null,"RAZEM ",{"$nulls":4},{"$f":"SUM(G12:G18)","v":{"v":0,"d":"0.00"}}]
["Budowa zasilania fotoradaru w m. Kamlarki w km 7+105 "]
["1.",null,"- zabudowa kompletnego fotoradaru zgodnie ze specyfikacją Zamawiajacego","kpl",1]
["2.",null,"- zabudowa kabla YKXS 3x10 zgodnie z dokumentacja projektową","mb",{"v":20,"d":"20.00"}]
["4.",null,"- zabudowa rur ochronncyh np. typu DVK 110 zgodnie z dokumentacja projektową ","mb",{"v":12,"d":"12.00"}]
["3.",null,"- zabudowa uziomu stalowego ocynkowanego pogrążalnego fi 20, l=2x12m (R<10Ω)  zgodnie z dokumentacja projektową ","kpl.",{"v":1,"d":"1.00"}]
["4.",null,"- wykonanie pomiarów elektrycznych powykonawczych ","kpl.",{"v":1,"d":"1.00"}]
["5.",null,"- obsługa geodezyjna ","kpl.",{"v":1,"d":"1.00"}]
[null,"RAZEM ",{"$nulls":4},{"$f":"SUM(G21:G26)","v":{"v":0,"d":"0.00"}}]
["Budowa zasilania pompowni PD2 w m. Krusin w km 9+640 "]
["1.",null,"- zabudowa złacza kablowego typu ZK-1a zgodnie z  dokumentacją projektową","kpl",2]
["2.",null,"- zabudowa kabla YKXS 4x70 zgodnie z dokumentacja projektową","mb",{"v":135,"d":"135.00"}]
["3.",null,"- zabudowa kabla YKXS 4x25 zgodnie z dokumentacja projektową","mb",{"v":13,"d":"13.00"}]
["4.",null,"- wykonanie przewiertów/przecisków rurą np. typu  SRS-G 110 zgodnie z dokumentacja projektową ","mb",{"v":38,"d":"38.00"}]
["5.",null,"- zabudowa rur ochronncyh np. typu DVK 110 zgodnie z dokumentacja projektową ","mb",{"v":72,"d":"72.00"}]
["6.",null,"- zabudowa uziomu stalowego ocynkowanego pogrążalnego fi 20, l=2x12m (R<10Ω)  zgodnie z dokumentacja projektową ","kpl.",{"v":1,"d":"1.00"}]
["7.",null,"- wykonanie pomiarów elektrycznych powykonawczych ","kpl.",{"v":1,"d":"1.00"}]
["8.",null,"- obsługa geodezyjna ","kpl.",{"v":1,"d":"1.00"}]
[null,"RAZEM ",{"$nulls":4},{"$f":"SUM(G29:G36)","v":{"v":0,"d":"0.00"}}]
["Budowa zasilania pompowni PD1 w m. Lisewo w km 10+285 "]
["1.",null,"- zabudowa złacza kablowego typu ZK-1a zgodnie z  dokumentacją projektową","kpl",{"v":2,"d":"2.00"}]
["2.",null,"- zabudowa kabla YKXS 4x70 zgodnie z dokumentacja projektową","mb",{"v":150,"d":"150.00"}]
["3.",null,"- zabudowa kabla YKXS 4x25 zgodnie z dokumentacja projektową","mb",{"v":15,"d":"15.00"}]
["4.",null,"- zabudowa rur ochronncyh np. typu SRS 110 zgodnie z dokumentacja projektową ","mb",{"v":12,"d":"12.00"}]
["5.",null,"- zabudowa rur ochronncyh np. typu DVK 110 zgodnie z dokumentacja projektową ","mb",{"v":11,"d":"11.00"}]
["6.",null,"- zabudowa uziomu stalowego ocynkowanego pogrążalnego fi 20, l=2x12m (R<10Ω)  zgodnie z dokumentacja projektową ","kpl.",{"v":1,"d":"1.00"}]
["7.",null,"- wykonanie pomiarów elektrycznych powykonawczych ","kpl.",{"v":1,"d":"1.00"}]
["8.",null,"- obsługa geodezyjna ","kpl.",{"v":1,"d":"1.00"}]
[null,"RAZEM ",{"$nulls":4},{"$f":"SUM(G39:G46)","v":{"v":0,"d":"0.00"}}]
[{"$nulls":6},{"$f":"SUM(G19,G27,G37,G47)","v":{"v":0,"d":"0.00"}}]
[]
[]
[]
[null,"________________",null,"______________"]
[null,"miejscowość, data",null,"podpis Wykonawcy"]

{"sheet":"PKP PLK","index":10,"n_rows":43,"n_cols":7,"rows_kept":43,"merged":[[0,0,0,6],[1,0,1,1],[1,2,1,6],[2,0,2,1],[2,2,2,6],[3,0,3,1],[3,2,3,6],[6,0,6,5],[18,1,18,5],[19,0,19,4],[36,1,36,5]]}
[{"$f":"DANE!B3","v":"Aktualizacja i optymalizacja dokumentacji projektowej zadania wraz z pełnieniem nadzoru autorskiego podczas realizacji Inwestycji tj.: ”Rozbudowa drogi wojewódzkiej nr 548 Stolno-Wąbrzeźno od km 0+005 do km 29+619 z wyłączeniem węzła autostradowego w m. Lisewo od km 14+144 do km 15+146” \nOdcinek nr 1 – od km 0+005 do km 14+144"}]
["Branża: ",null,"BRANŻA ELEKTROENERGETYCZNA 22.07"]
["Obiekt:",null,"Sieci wł.PKP PLK"]
["Kod CPV:",null,"45000000-9\nRoboty budowlane w zakresie wznoszenia kompletnych obiektów budowlanych lub ich części oraz roboty w zakresie inżynierii lądowej i wodnej "]
["Poz.","Podstawa wyceny","Wyszczególnienie elementu rozliczeniowego","Jedn.","Ilość jedn.","Cena jedn.","Wartość robót"]
[null,"U.01.03.02 U.07.07.01","Przebudowa i budowa kablowych linii energetycznych Budowa oswietlenia drogowego","x","x","x","x"]
["Przebudowa oświetlenia przejazdu kolejowego PKP PLK"]
["1.",null,"- zabudowa punktów oświetleniowych z demontażu zgodnie z dokumentacją projektową","kpl",4]
["3.",null,"- zabudowa kabla YKXS 4x10 zgodnie z dokumentacja projektową","mb",{"v":40,"d":"40.00"}]
["4.",null,"- wykonanie przewiertów/przecisków rurą np. typu  SRS-G 110 zgodnie z dokumentacja projektową ","mb",{"v":23,"d":"23.00"}]
["5.",null,"- zabudowa rur ochronncyh np. typu DVR 50 zgodnie z dokumentacja projektową ","mb",{"v":40,"d":"40.00"}]
["6.",null,"- zabudowa złącza słupowego/tabliczki słupowej zgodnie z dokumentacja projektową ","kpl.",{"v":2,"d":"2.00"}]
["7.",null,"- zabudowa uziomu stalowego ocynkowanego pogrążalnego fi 20, l=2x12m (R<10Ω)  zgodnie z dokumentacja projektową ","kpl.",{"v":2,"d":"2.00"}]
["8.",null,"- zabudowa mufy kablowej termokurczliwej nN","kpl.",{"v":1,"d":"1.00"}]
["9.",null,"- wykonanie pomiarów elektrycznych powykonawczych ","kpl.",{"v":1,"d":"1.00"}]
["10.",null,"- obsługa geodezyjna ","kpl.",{"v":1,"d":"1.00"}]
["11.",null,"- demontż istniejącego punktu oświetleniowego kompletnie wyposażonego typu WZ-8 z wysięgnikiem oraz  oprawą (oprawa do ponownej zabudowy po oczyszczeniu i wymianie źródła światła na nowe)","kpl",4]
["12.",null,"- demontaż linii kablowej nN","mb",30]
[null,"RAZEM "]
["Przebudowa sygnalizacji przejazdu kolejowego PKP PLK"]
["1.",null,"- zabudowa kompletnych sygnalizatorów z demontażu","kpl",{"v":2,"d":"2.00"}]
["2.",null,"- zabudowa kompletnych punktów monitoringu z demontażu","kpl",{"v":2,"d":"2.00"}]
["3.",null,"- zabudowa kompletnych rogatek z demontażu  wymianą drągów na dłuższe ","kpl",{"v":4,"d":"4.00"}]
["4.",null,"- zabudowa kabla YKSY 10x1,5 zgodnie z dokumentacja projektową","mb",{"v":40,"d":"40.00"}]
["5.",null,"- przełożenie na nową trase istniejących kabli zgodnie z dokumentacja projektową","mb",{"v":35,"d":"35.00"}]
["6.",null,"- wykonanie przewiertów/przecisków rurą np. typu  SRS-G 110 zgodnie z dokumentacja projektową ","mb",{"v":23,"d":"23.00"}]
["7.",null,"- zabudowa rur ochronncyh np. typu DVR 50 zgodnie z dokumentacja projektową ","mb",{"v":40,"d":"40.00"}]
["8.",null,"- zabudowa rur ochronncyh dzielonych np. typu A110PS zgodnie z dokumentacja projektową ","mb",{"v":20,"d":"20.00"}]
["9.",null,"- zabudowa uziomu stalowego ocynkowanego pogrążalnego fi 20, l=2x12m (R<10Ω)  zgodnie z dokumentacja projektową ","kpl.",{"v":2,"d":"2.00"}]
["10.",null,"- zabudowa mufy kablowej nN do kabli wielożyłowych sygnalizacyjnych","kpl.",{"v":1,"d":"1.00"}]
["11.",null,"- wykonanie pomiarów elektrycznych powykonawczych ","kpl.",{"v":1,"d":"1.00"}]
["12.",null,"- obsługa geodezyjna ","kpl.",{"v":1,"d":"1.00"}]
["13.",null,"- demontż istniejącego sygnalizatora ","kpl",{"v":4,"d":"4.00"}]
["14.",null,"- demontż istniejących punktów monitoringu","kpl",{"v":2,"d":"2.00"}]
["15.",null,"- demontż istniejących rogatek","kpl",{"v":4,"d":"4.00"}]
["16.",null,"- demontaż linii kablowej sygnalizacyjnej","mb",{"v":60,"d":"60.00"}]
[null,"RAZEM "]
[]
[]
[]
[]
[null,"________________",null,"______________"]
[null,"miejscowość, data",null,"podpis Wykonawcy"]

{"sheet":"Melioracja","index":11,"n_rows":43,"n_cols":7,"rows_kept":43,"merged":[[0,0,0,6],[1,0,1,1],[1,2,1,6],[2,0,2,1],[2,2,2,6],[3,0,3,1],[3,2,3,6]]}
[{"$f":"DANE!B3","v":"Aktualizacja i optymalizacja dokumentacji projektowej zadania wraz z pełnieniem nadzoru autorskiego podczas realizacji Inwestycji tj.: ”Rozbudowa drogi wojewódzkiej nr 548 Stolno-Wąbrzeźno od km 0+005 do km 29+619 z wyłączeniem węzła autostradowego w m. Lisewo od km 14+144 do km 15+146” \nOdcinek nr 1 – od km 0+005 do km 14+144"}]
["Branża: ",null,"BRANŻA MELIORACYJNA 22.07"]
["Obiekt:",null,"Melioracje szczegółowe"]
["Kod CPV:",null,"45000000-9\nRoboty budowlane w zakresie wznoszenia kompletnych obiektów budowlanych lub ich części oraz roboty w zakresie inżynierii lądowej i wodnej "]
["Poz.","Podstawa wyceny","Wyszczególnienie elementu rozliczeniowego","Jedn.","Ilość jedn.","Cena jedn.","Wartość robót"]
[null,null,"Roboty przygotowawcze",null,null,"x","x"]
[1,null,"Roboty pomiarowe - wytyczenie trasy rurociągów","m",{"v":604.1,"d":"604.10"}]
[2,null,"Wykopy kontrolne","m3",{"v":504,"d":"504.00"}]
[null,null,"Roboty ziemne","X","X","X","X"]
[{"$f":"A8+1","v":3},null,"Usunięcie warstwy ziemi urodzajnej 30 cm wraz z odtworzeniem (rozplantowaniem po zasypaniu wykopu)","m2",3395.04]
[{"$f":"A10+1","v":4},null,"Wykopy mechaniczne z rozkopem o ścianach z nachyleniem 1:1.5","m3",{"v":7043,"d":"7043.00"}]
[{"$f":"A11+1","v":5},null,"Podsypka, obsypka piaskowa wraz z zagęszczaniem ręcznym","m3",{"v":241.64000000000001,"d":"241.64"}]
[6,null,"Zasypanie wykopów gruntem rodzimym wraz z zagęszczaniem mechanicznym","m3",{"v":6727,"d":"6727.00"}]
[{"$f":"A13+1","v":7},null,"Wywiezienie nadmiaru gruntu z wykopu i składowanie na terenie budowy","m3",{"v":317,"d":"317.00"}]
[null,null,"Rurociągi PVC ze ścianką litą","X","X","X","X"]
[{"$f":"A14+1","v":8},null,"Rura PVC DN 200*","m",{"v":402.7,"d":"402.70"}]
[{"$f":"A16+1","v":9},null,"Rura PVC DN 300*","m",{"v":85.4,"d":"85.40"}]
[{"$f":"A17+1","v":10},null,"Rura PVC DN 500*","m",{"v":85.4,"d":"85.40"}]
[null,null,"Rury osłonowe PE","X","X","X","X"]
[{"$f":"A18+1","v":11},null,"Rura osłonowa DN 300*","m",{"v":100.7,"d":"100.70"}]
[{"$f":"A20+1","v":12},null,"Rura osłonowa DN 400*","m",{"v":85.4,"d":"85.40"}]
[{"$f":"A21+1","v":13},null,"Rura osłonowa DN 800*","m",{"v":85.4,"d":"85.40"}]
[14,null,"Płozy dystansowe dla PE 300 R28*","szt.",{"v":56,"d":"56.00"}]
[15,null,"Płozy dystansowe dla PE 400 R28*","szt.",{"v":99,"d":"99.00"}]
[16,null,"Płozy dystansowe dla PE 800 SM DUO I*","szt.",{"v":99,"d":"99.00"}]
[null,null,"Studnie melioracyjne bez dna","X","X","X","X"]
[{"$f":"A25+1","v":17},null,"Studzienka śred. 1 m, wys. 3.5 m*","kpl",{"v":29,"d":"29.00"}]
[null,null,"Wyloty melioracyjne","X","X","X","X"]
[{"$f":"A27+1","v":18},null,"Wylot prefabrykowany DN300 wg KPED 02.17*","kpl",{"v":1,"d":"1.00"}]
[{"$f":"A29+1","v":19},null,"Wylot prefabrykowany DN600 wg KPED 02.16*","kpl",{"v":2,"d":"2.00"}]
[{"$f":"A30+1","v":20},null,"Wylot prefabrykowany DN800 wg KPED 02.16*","kpl",{"v":1,"d":"1.00"}]
[null,null,"Zaślepka PCV","X","X","X","X"]
[{"$f":"A31+1","v":21},null,"Zaślepka PCV lub korek betonowy","kpl",{"v":3,"d":"3.00"}]
[null,null,"Osadnik przy wlocie do studni melioracyjnych z rowów","X","X","X","X"]
[{"$f":"A33+1","v":22},null,"Osadnik wg KPED 01.14","kpl",{"v":1,"d":"1.00"}]
[{"$nulls":6},{"$f":"SUM(G6:G35)","v":{"v":0,"d":"0.00"}}]
[]
[]
[]
[]
[]
[null,"________________",null,"______________"]
[null,"miejscowość, data",null,"podpis Wykonawcy"]